Workbook

Sheet 2015 Pre-Draft Rosters
B1: Lightning (Mike Goodman) | F1: Evolution (Bruce) | J1: The Soylent Knights (Colin) | N1: Woap (Mike) | R1: The Dominant Brand (Brandon) | V1: Guzzlers (Rhonda) | Z1: The Macon Whoopees (Rob) | AD1: Booya's (Cathy) | AH1: Freebirds (Todd) | AL1: Numbats (Tom) | AP1: TheDunnShow (Dave)
B2: Pos. | C2: Player | D2: $ | E2: years | F2: Pos. | G2: Player | H2: $ | I2: years | J2: Pos. | K2: Player | L2: $ | M2: years | N2: Pos. | O2: Player | P2: $ | Q2: years | R2: Pos. | S2: Player | T2: $ | U2: years | V2: Pos. | W2: Player | X2: $ | Y2: years | Z2: Pos. | AA2: Player | AB2: $ | AC2: years | AD2: Pos. | AE2: Player | AF2: $ | AG2: years | AH2: Pos. | AI2: Player | AJ2: $ | AK2: years | AL2: Pos. | AM2: Player | AN2: $ | AO2: years | AP2: Pos. | AQ2: Player | AR2: $ | AS2: years
A3: =11-COUNT(D3,H3,L3,P3,T3,X3,AB3,AF3,AJ3,AN3,AR3) -> 2 | B3: C | F3: C | G3: Yan Gomes Cle - C | H3: 15 | I3: 1 | J3: C | K3: Salvador Pérez KC - C | L3: 14 | N3: C | O3: Evan Gattis Hou - C | P3: 36 | R3: C | V3: C | W3: Tyler Flowers CWS - C | X3: 1 | Z3: C | AA3: Kurt Suzuki Min - C | AB3: 1 | AD3: C | AE3: Russell Martin Tor - C | AF3: 19 | AH3: C | AI3: Dioner Navarro Tor - C | AJ3: 5 | AL3: C | AM3: Carlos Pérez LAA - C | AN3: 5 | AP3: C | AQ3: J.P. Arencibia TB - C,1B | AR3: 5
A4: 0 | B4: 1B | C4: Edwin Encarnación Tor - 1B | D4: 48 | F4: 1B | G4: David Ortiz Bos - 1B | H4: 45 | J4: 1B | K4: Chase Headley NYY - 1B,3B | L4: 10 | M4: 1 | N4: 1B | O4: Mike Napoli Bos - 1B | P4: 8 | R4: 1B | S4: Eric Hosmer KC - 1B | T4: 6 | V4: 1B | W4: Kennys Vargas Min - 1B | X4: 1 | Z4: 1B | AA4: Víctor Martínez Det - 1B | AB4: 32 | AD4: 1B | AE4: Billy Butler Oak - 1B | AF4: 1 | AH4: 1B | AI4: Prince Fielder Tex - 1B | AJ4: 28 | AL4: 1B | AM4: Delino DeShields Tex - 2B,OF | AN4: 5 | AP4: 1B | AQ4: José Abreu CWS - 1B | AR4: 22 | AS4: 1
A5: 0 | B5: 2B | C5: Jurickson Profar Tex - 2B,SS | D5: 15 | E5: 1 | F5: 2B | G5: Logan Forsythe TB - 1B,2B | H5: 5 | J5: 2B | K5: Ian Kinsler Det - 2B | L5: 25 | M5: 1 | N5: 2B | O5: Brian Dozier Min - 2B | P5: 36 | R5: 2B | S5: Brett Lawrie Oak - 2B,3B | T5: 16 | V5: 2B | W5: Robinson Canó Sea - 2B | X5: 49 | Z5: 2B | AA5: Tim Beckham TB - 2B,SS | AB5: 5 | AD5: 2B | AE5: José Altuve Hou - 2B | AF5: 21 | AG5: 1 | AH5: 2B | AI5: Luis Valbuena Hou - 2B,3B | AJ5: 8 | AL5: 2B | AM5: Jonathan Schoop Bal - 2B,3B | AN5: 5 | AP5: 2B | AQ5: Dustin Pedroia Bos - 2B | AR5: 32
A6: 1 | B6: 3B | C6: Nick Castellanos Det - 3B | D6: 1 | F6: 3B | G6: Miguel Sano Min - 3B,SS | H6: 5 | J6: 3B | K6: Manny Machado Bal - 3B | L6: 15 | M6: 1 | N6: 3B | R6: 3B | S6: Trevor Plouffe Min - 3B | T6: 1 | V6: 3B | W6: Adrián Béltre Tex - 3B | X6: 40 | Z6: 3B | AA6: Danny Valencia Oak - 1B,3B,OF | AB6: 5 | AD6: 3B | AE6: Jose Iglesias Det - 3B,SS | AF6: 5 | AH6: 3B | AI6: Evan Longoria TB - 3B | AJ6: 35 | AL6: 3B | AM6: Kyle Seager Sea - 3B | AN6: 38 | AP6: 3B | AQ6: Jimmy Paredes Bal - 2B,3B | AR6: 5
A7: 1 | B7: SS | C7: Francisco Lindor Cle - SS | D7: 5 | F7: SS | G7: Marcus Semien Oak - 2B,3B,SS | H7: 5 | J7: SS | K7: Carlos Correa Hou - SS | L7: 5 | N7: SS | O7: Elvis Andrus Tex - SS | P7: 16 | R7: SS | S7: Didi Gregorius NYY - 2B,SS | T7: 5 | V7: SS | W7: Brock Holt Bos - 1B,2B,3B,SS,OF | X7: 5 | Z7: SS | AA7: Alexei Ramírez CWS - SS | AB7: 22 | AD7: SS | AE7: Ben Zobrist Oak - 2B,SS,OF | AF7: 28 | AH7: SS | AI7: Mike Avilés Cle - 2B,3B,SS,OF | AJ7: 1 | AL7: SS | AM7: Brad Miller Sea - 2B,SS | AN7: 5 | AP7: SS
A8: 2 | B8: OF#1 | C8: Adam Eaton CWS - OF | D8: 4 | F8: OF#1 | J8: OF#1 | K8: Shin-Soo Choo Tex - OF | L8: 7 | N8: OF#1 | O8: Ben Revere Tor - OF | P8: 5 | R8: OF#1 | S8: Rajai Davis Det - OF | T8: 7 | V8: OF#1 | W8: Mookie Betts Bos - 2B,OF | X8: 5 | Z8: OF#1 | AA8: Melky Cabrera CWS - OF | AB8: 32 | AD8: OF#1 | AH8: OF#1 | AI8: Chris Carter Hou - 1B,OF | AJ8: 40 | AL8: OF#1 | AM8: Kole Calhoun LAA - OF | AN8: 10 | AO8: 1 | AP8: OF#1 | AQ8: Rusney Castillo Bos - OF | AR8: 5
A9: 1 | B9: OF#2 | C9: Lonnie Chisenhall Cle - 1B,3B | D9: 1 | F9: OF#2 | J9: OF#2 | K9: David Murphy LAA - OF | L9: 5 | N9: OF#2 | O9: Billy Burns Oak - Util | P9: 5 | R9: OF#2 | S9: Michael Brantley Cle - OF | T9: 46 | V9: OF#2 | W9: Steve Pearce Bal - 1B,OF | X9: 21 | Z9: OF#2 | AA9: Coco Crisp Oak - OF | AB9: 5 | AD9: OF#2 | AE9: Eduardo Escobar Min - 2B,3B,SS,OF | AF9: 5 | AH9: OF#2 | AI9: Carlos Beltran NYY - OF | AJ9: 5 | AL9: OF#2 | AM9: Mikie Mahtook TB - OF | AN9: 5 | AP9: OF#2 | AQ9: Anthony Gose Det - OF | AR9: 6
A10: 0 | B10: OF#3 | C10: Jackie Bradley Jr. Bos - OF | D10: 5 | F10: OF#3 | G10: George Springer Hou - OF | H10: 15 | I10: 2 | J10: OF#3 | K10: Dalton Pompey Tor - OF | L10: 5 | N10: OF#3 | O10: Franklin Gutiérrez Sea - OF | P10: 5 | R10: OF#3 | S10: Mark Canha Oak - 1B,OF | T10: 5 | V10: OF#3 | W10: Kevin Kiermaier TB - OF | X10: 5 | Z10: OF#3 | AA10: Kevin Pillar Tor - OF | AB10: 5 | AD10: OF#3 | AE10: J.D. Martínez Det - OF | AF10: 10 | AG10: 1 | AH10: OF#3 | AI10: Steven Souza TB - OF | AJ10: 17 | AL10: OF#3 | AM10: Eddie Rosario Min - 2B,OF | AN10: 5 | AP10: OF#3 | AQ10: Colby Rasmus Hou - OF | AR10: 5
A11: 0 | B11: DH | C11: Rougned Odor Tex - 2B | D11: 4 | F11: DH | G11: Chris Davis Bal - 1B,3B | H11: 45 | J11: DH | K11: Joe Mauer Min - 1B | L11: 3 | N11: DH | O11: Chris Colabello Tor - 1B,OF | P11: 5 | R11: DH | S11: Kendrys Morales KC - 1B | T11: 5 | V11: DH | W11: Pablo Sandoval Bos - 3B | X11: 28 | Z11: DH | AA11: Mark Teixeira NYY - 1B | AB11: 2 | AD11: DH | AE11: Justin Smoak Tor - 1B | AF11: 5 | AH11: DH | AI11: Michael Saunders Tor - OF | AJ11: 1 | AL11: DH | AM11: Abraham Almonte Cle - OF | AN11: 5 | AP11: DH | AQ11: Travis Shaw Bos - 1B,3B | AR11: 5
A12: 0 | B12: SP#1 | C12: Daniel Norris Tor - SP | D12: 5 | F12: SP#1 | G12: Chris Sale CWS - SP | H12: 50 | J12: SP#1 | K12: Ervin Santana Min - SP | L12: 20 | N12: SP#1 | O12: Tyler Duffey Min - SP | P12: 5 | R12: SP#1 | S12: Edinson Vólquez KC - SP | T12: 11 | V12: SP#1 | W12: Jeff Samardzija CWS - SP | X12: 5 | Z12: SP#1 | AA12: Alfredo Simón Det - SP | AB12: 10 | AD12: SP#1 | AE12: Ricky Nolasco Min - SP | AF12: 5 | AH12: SP#1 | AI12: C.J. Wilson LAA - SP | AJ12: 2 | AL12: SP#1 | AM12: Roenis Elías Sea - SP | AN12: 5 | AP12: SP#1 | AQ12: Henry Owens Bos - SP | AR12: 9
A13: 0 | B13: SP#2 | C13: Nick Tropeano LAA - SP | D13: 5 | F13: SP#2 | G13: Félix Hernández Sea - SP | H13: 40 | I13: 1 | J13: SP#2 | K13: Cody Anderson Cle - SP | L13: 5 | N13: SP#2 | O13: Wei-Yin Chen Bal - SP | P13: 7 | R13: SP#2 | S13: Colby Lewis Tex - SP | T13: 5 | V13: SP#2 | W13: Ubaldo Jiminez Bal - SP | X13: 5 | Z13: SP#2 | AA13: José Quintana CWS - SP | AB13: 18 | AD13: SP#2 | AE13: Jason Vargas KC - SP | AF13: 5 | AH13: SP#2 | AI13: Miguel González Bal - SP | AJ13: 1 | AL13: SP#2 | AM13: Collin McHugh Hou - SP | AN13: 10 | AO13: 1 | AP13: SP#2 | AQ13: Andrew Heaney LAA - SP | AR13: 8
A14: 0 | B14: SP#3 | C14: Drew Smyly TB - SP | D14: 14 | E14: 1 | F14: SP#3 | G14: Iván Nova NYY - SP | H14: 5 | J14: SP#3 | K14: Masahiro Tanaka NYY - SP | L14: 30 | M14: 1 | N14: SP#3 | O14: Matt Shoemaker LAA - SP,RP | P14: 10 | Q14: 1 | R14: SP#3 | S14: Chris Young Sea - SP | T14: 5 | V14: SP#3 | W14: Johnny Cueto KC - SP | X14: 5 | Z14: SP#3 | AA14: Justin Verlander Det - SP | AB14: 31 | AD14: SP#3 | AE14: Derek Holland Tex - SP | AF14: 7 | AG14: 1 | AH14: SP#3 | AI14: Jake Odorizzi TB - SP | AJ14: 8 | AK14: 1 | AL14: SP#3 | AM14: Carlos Carrasco Cle - SP,RP | AN14: 10 | AO14: 1 | AP14: SP#3 | AQ14: Nathan Karns TB - SP | AR14: 5
A15: 0 | B15: SP#4 | C15: Kevin Gausman Bal - SP | D15: 15 | E15: 1 | F15: SP#4 | G15: Chris Archer TB - SP | H15: 6 | I15: 1 | J15: SP#4 | K15: Michael Pineda NYY - SP | L15: 17 | M15: 1 | N15: SP#4 | O15: Phil Hughes Min - SP | P15: 10 | Q15: 1 | R15: SP#4 | S15: Franklin Morales KC- SP, RP | T15: 5 | V15: SP#4 | W15: Drew Hutchison Tor - SP | X15: 6 | Y15: 1 | Z15: SP#4 | AA15: Scott Feldman Hou - SP | AB15: 5 | AD15: SP#4 | AE15: Dallas Keuchel Hou - SP | AF15: 10 | AG15: 1 | AH15: SP#4 | AI15: Eduardo Rodriguez Bos - SP | AJ15: 5 | AL15: SP#4 | AM15: Lance McCullers Hou - SP | AN15: 5 | AP15: SP#4 | AQ15: Jesse Hahn Oak - SP | AR15: 10
A16: 0 | B16: SP#5 | C16: Yordano Ventura KC - SP | D16: 10 | E16: 1 | F16: SP#5 | G16: Wade Miley Bos - SP | H16: 5 | J16: SP#5 | K16: Taijuan Walker Sea - SP | L16: 15 | M16: 2 | N16: SP#5 | O16: Kyle Gibson Min - SP | P16: 5 | R16: SP#5 | S16: Anibal Sánchez Det - SP | T16: 15 | U16: 1 | V16: SP#5 | W16: Sonny Gray Oak - SP | X16: 15 | Y16: 1 | Z16: SP#5 | AA16: Garrett Richards LAA - SP | AB16: 11 | AC16: 2 | AD16: SP#5 | AE16: Vidal Nuno Sea - SP,RP | AF16: 5 | AH16: SP#5 | AI16: Marcus Stroman Tor - SP,RP | AJ16: 15 | AK16: 2 | AL16: SP#5 | AM16: Luis Severino NYY - SP,RP | AN16: 5 | AP16: SP#5 | AQ16: James Paxton Sea - SP | AR16: 11
A17: 1 | B17: RP#1 | C17: Chris Bassitt Oak - SP,RP | D17: 5 | F17: RP#1 | J17: RP#1 | K17: Carson Smith Sea - RP | L17: 5 | N17: RP#1 | O17: Alex Wilson Det - RP | P17: 5 | R17: RP#1 | S17: Chad Qualls Hou - RP | T17: 7 | V17: RP#1 | W17: Kevin Jepsen Min - RP | X17: 5 | Z17: RP#1 | AA17: Aarón Sánchez Tor - RP | AB17: 5 | AD17: RP#1 | AE17: Rich Hill Bos - SP,RP | AF17: 5 | AH17: RP#1 | AI17: Ryan O'Rourke Min - RP | AJ17: 5 | AL17: RP#1 | AM17: Shawn Tolleson Tex - RP | AN17: 5 | AP17: RP#1 | AQ17: Carlos Rodon CWS - RP | AR17: 1
A18: 0 | B18: RP#2 | C18: Erasmo Ramirez TB - SP,RP | D18: 5 | F18: RP#2 | G18: Darren O'Day Bal - RP | H18: 2 | J18: RP#2 | K18: Fernando Rodriguez Oak - RP | L18: 5 | N18: RP#2 | O18: Jeff Manship Cle - RP | P18: 5 | R18: RP#2 | S18: Brett Cecil Tor - RP | T18: 16 | V18: RP#2 | W18: Bryan Shaw Cle - RP | X18: 2 | Z18: RP#2 | AA18: Tom Wilhelmsen Sea - RP | AB18: 2 | AD18: RP#2 | AE18: Jake McGee TB - RP | AF18: 20 | AH18: RP#2 | AI18: Caesar Ramos LAA - SP,RP | AJ18: 5 | AL18: RP#2 | AM18: Ryan Madson KC - RP | AN18: 5 | AP18: RP#2 | AQ18: Roberto Osuna Tor - RP | AR18: 5
A19: 1 | B19: RP#3 | C19: Vince Velasquez Hou - SP,RP | D19: 5 | F19: RP#3 | J19: RP#3 | K19: Kendall Graveman Oak - SP,RP | L19: 5 | N19: RP#3 | O19: Adam Warren NYY - RP | P19: 1 | R19: RP#3 | S19: Al Alburquerque Det - RP | T19: 5 | V19: RP#3 | W19: Andrew Miller NYY - RP | X19: 10 | Y19: 1 | Z19: RP#3 | AA19: Huston Street LAA - RP | AB19: 10 | AC19: 1 | AD19: RP#3 | AE19: Koji Uehara Bos - RP | AF19: 26 | AG19: 1 | AH19: RP#3 | AI19: Tommy Hunter Bal - RP | AJ19: 5 | AL19: RP#3 | AM19: Robbie Ross Jr. Bos - SP,RP | AN19: 5 | AP19: RP#3 | AQ19: Josh Fields Hou - RP | AR19: 5
A20: 0 | B20: RP#4 | C20: Kris Medlen KC - SP,RP | D20: 5 | F20: RP#4 | G20: Zach Britton Bal - RP | H20: 10 | I20: 1 | J20: RP#4 | K20: Mark Lowe Tor - RP | L20: 5 | N20: RP#4 | O20: Dellin Betances NYY - RP | P20: 10 | Q20: 1 | R20: RP#4 | S20: Joe Smith LAA - RP | T20: 4 | V20: RP#4 | W20: Cody Allen Cle - RP | X20: 6 | Y20: 1 | Z20: RP#4 | AA20: Marco Estrada Tor - SP,RP | AB20: 5 | AD20: RP#4 | AE20: Glen Perkins Min - RP | AF20: 31 | AG20: 1 | AH20: RP#4 | AI20: Brad Brach Bal - RP | AJ20: 5 | AL20: RP#4 | AM20: Neftali Feliz Tex - RP | AN20: 5 | AP20: RP#4 | AQ20: Will Harris Hou - RP | AR20: 5
C21: Current Used Points | D21: =SUM(D3:D20) -> 152 | G21: Current Used Points | H21: =SUM(H3:H20) -> 253 | K21: Current Used Points | L21: =SUM(L3:L20) -> 196 | O21: Current Used Points | P21: =SUM(P3:P20) -> 174 | S21: Current Used Points | T21: =SUM(T3:T20) -> 164 | W21: Current Used Points | X21: =SUM(X3:X20) -> 214 | AA21: Current Used Points | AB21: =SUM(AB3:AB20) -> 206 | AE21: Current Used Points | AF21: =SUM(AF3:AF20) -> 208 | AI21: Current Used Points | AJ21: =SUM(AJ3:AJ20) -> 191 | AM21: Current Used Points | AN21: =SUM(AN3:AN20) -> 138 | AQ21: Current Used Points | AR21: =SUM(AR3:AR20) -> 144
C22: Remaining Points | D22: =SUM(260-D21) -> 108 | G22: Remaining Points | H22: =SUM(260-H21) -> 7 | K22: Remaining Points | L22: =SUM(260-L21) -> 64 | O22: Remaining Points | P22: =SUM(260-P21) -> 86 | S22: Remaining Points | T22: =SUM(260-T21) -> 96 | W22: Remaining Points | X22: =SUM(260-X21) -> 46 | AA22: Remaining Points | AB22: =SUM(260-AB21) -> 54 | AE22: Remaining Points | AF22: =SUM(260-AF21) -> 52 | AI22: Remaining Points | AJ22: =SUM(260-AJ21) -> 69 | AM22: Remaining Points | AN22: =SUM(260-AN21) -> 122 | AQ22: Remaining Points | AR22: =SUM(260-AR21) -> 116
B23: Maximum Bidding Points | D23: =(D22-(18-COUNT(D3:D20))+(IF(COUNT(D3:D20)=18,0,1))) -> 108 | F23: Maximum Bidding Points | H23: =(H22-(18-COUNT(H3:H20))+(IF(COUNT(H3:H20)=18,0,1))) -> 4 | J23: Maximum Bidding Points | L23: =(L22-(18-COUNT(L3:L20))+(IF(COUNT(L3:L20)=18,0,1))) -> 64 | N23: Maximum Bidding Points | P23: =(P22-(18-COUNT(P3:P20))+(IF(COUNT(P3:P20)=18,0,1))) -> 86 | R23: Maximum Bidding Points | T23: =(T22-(18-COUNT(T3:T20))+(IF(COUNT(T3:T20)=18,0,1))) -> 96 | V23: Maximum Bidding Points | X23: =(X22-(18-COUNT(X3:X20))+(IF(COUNT(X3:X20)=18,0,1))) -> 46 | Z23: Maximum Bidding Points | AB23: =(AB22-(18-COUNT(AB3:AB20))+(IF(COUNT(AB3:AB20)=18,0,1))) -> 54 | AD23: Maximum Bidding Points | AF23: =(AF22-(18-COUNT(AF3:AF20))+(IF(COUNT(AF3:AF20)=18,0,1))) -> 52 | AH23: Maximum Bidding Points | AJ23: =(AJ22-(18-COUNT(AJ3:AJ20))+(IF(COUNT(AJ3:AJ20)=18,0,1))) -> 69 | AL23: Maximum Bidding Points | AN23: =(AN22-(18-COUNT(AN3:AN20))+(IF(COUNT(AN3:AN20)=18,0,1))) -> 122 | AP23: Maximum Bidding Points | AR23: =(AR22-(18-COUNT(AR3:AR20))+(IF(COUNT(AR3:AR20)=18,0,1))) -> 116
B24: Remaining # of Players to Draft | D24: =18-COUNT(D3:D20) -> 1 | F24: Remaining # of Players to Draft | H24: =18-COUNT(H3:H20) -> 4 | J24: Remaining # of Players to Draft | L24: =18-COUNT(L3:L20) -> 0 | N24: Remaining # of Players to Draft | P24: =18-COUNT(P3:P20) -> 1 | R24: Remaining # of Players to Draft | T24: =18-COUNT(T3:T20) -> 1 | V24: Remaining # of Players to Draft | X24: =18-COUNT(X3:X20) -> 0 | Z24: Remaining # of Players to Draft | AB24: =18-COUNT(AB3:AB20) -> 0 | AD24: Remaining # of Players to Draft | AF24: =18-COUNT(AF3:AF20) -> 1 | AH24: Remaining # of Players to Draft | AJ24: =18-COUNT(AJ3:AJ20) -> 0 | AL24: Remaining # of Players to Draft | AN24: =18-COUNT(AN3:AN20) -> 0 | AP24: Remaining # of Players to Draft | AR24: =18-COUNT(AR3:AR20) -> 1
C27: Ketel Marte Sea - 2B, SS | D27: 5 | E27: r2016 | G27: Richie Shaffer TB - 1B,3B | H27: 5 | I27: r2016 | K27: Mark Trumbo Sea - 1B,OF | L27: 5 | M27: r2016 | O27: Devon Travis Tor - 2B | P27: 5 | Q27: r2016 | S27: Carlos Gomez Hou - OF | T27: 5 | U27: r2016 | W27: J.J. Hardy Bal - SS | X27: 5 | Y27: r2016 | AA27: James McCann Det - C | AB27: 5 | AC27: r2016 | AE27: Ryan Goins Tor - 2B,SS | AF27: 5 | AI27: Cole Hamels Tex - SP | AJ27: 5 | AK27: r2016 | AM27: Yu Darvish Tex - SP | AN27: 13 | AO27: r2016 | AQ27: Troy Tulowitzki Tor - SS | AR27: 5 | AS27: r2016
C28: Bradley Zimmer Cle - OF | D28: 5 | E28: r2016 | G28: Tim Anderson CWS - SS | H28: 5 | I28: r2016 | K28: Gerardo Parra Bal - OF | L28: 5 | M28: r2016 | O28: Gary Sánchez NYY - C | P28: 5 | Q28: 2016 | S28: Mike Fiers Hou - SP | T28: 5 | U28: r2016 | W28: Rob Refsnyder NYY - 2B | X28: 5 | Y28: r2016 | AA28: Trayce Thompson CWS - OF | AB28: 5 | AC28: r2016 | AE28: Josh Tomlin Cle - SP,RP | AF28: 5 | AI28: Andrew Bellatti TB - SP,RP | AJ28: 5 | AK28: r2016 | AM28: Mat Latos LAA - SP | AN28: 5 | AO28: r2016 | AQ28: Blake Swihart Bos - C | AR28: 5 | AS28: r2016
C29: Frankie Montas CWS - RP | D29: 5 | E29: r2016 | G29: Mitch Moreland Tex - 1B | H29: 5 | K29: Max Kepler Min - 1B,OF | L29: 5 | M29: r2016 | O29: CC Sabathia NYY - SP | P29: 8 | S29: Hector Santiago LAA - SP,RP | T29: 5 | U29: r2016 | W29: Chasen Shreve NYY - RP | X29: 5 | AA29: Byron Buxton Min - OF | AB29: 5 | AE29: Justin Wilson NYY - RP | AF29: 5 | AI29: Jarrod Parker Oak - SP | AJ29: 5 | AK29: r2016 | AM29: Yoan Moncada Bos - 2B | AN29: 1 | AO29: r2016 | AQ29: Greg Bird NYY - 1B | AR29: 5 | AS29: r2016
C30: Miguel Almonte KC - SP, RP | D30: 5 | E30: r2016 | G30: Hanley Ramírez Bos - SS | H30: 51 | K30: Josh Berrios Min - SP | L30: 5 | M30: r2016 | O30: Nathan Eovaldi NYY - SP | P30: 5 | S30: Joe Nathan Det - RP | T30: 19 | U30: r2016 | W30: Keone Kela Tex - RP | X30: 5 | AA30: Dayan Viciedo Tor - OF | AB30: 5 | AE30: Tommy Milone Min - SP | AF30: 5 | AI30: Joey Gallo Tex - 3B | AJ30: 5 | AK30: r2016 | AM30: Tyler Skaggs LAA - SP | AN30: 5 | AO30: r2016 | AQ30: Aaron Judge NYY - OF Hou - 1B | AR30: 5 | AS30: r2016
C31: Sean Manaea KC- SP | D31: 5 | E31: r2016 | G31: David Freese LAA - 3B | H31: 5 | K31: Charlie Furbush Sea - RP | L31: 5 | O31: Craig Breslow Bos - RP | P31: 5 | S31: Desmond Jennings TB - OF | T31: 4 | W31: Alex Cobb TB - SP | X31: 20 | AA31: Logan Morrison Sea - 1B,OF | AB31: 5 | AE31: Liam Hendriks Tor - SP,RP | AF31: 5 | AI31: Oswaldo Arcia Min - OF | AJ31: 5 | AK31: r2016 | AM31: C.J. Cron LAA - 1B | AN31: 5 | AQ31: Micah Johnson CWS - 2B | AR31: 1
C32: Erik Johnson CWS - SP | D32: 5 | K32: Kyle Blanks Tex - 1B | L32: 5 | S32: Chris Young NYY - OF | T32: 5 | AA32: Jesse Chavez Oak - SP,RP | AB32: 10 | AE32: Steven Wright Bos - SP,RP | AF32: 5 | AI32: Gavin Floyd Cle - SP,RP | AJ32: 5 | AM32: A.J. Griffin Oak - SP | AN32: 5 | AQ32: Sam Dyson Tex - RP | AR32: 5
C33: Martin Perez Tex - SP | D33: 5 | S33: Jake Marisnick Hou - OF | T33: 5 | AA33: Johnny Giavotella LA - 2B | AB33: 5 | AI33: Josh Reddick Oak - OF | AJ33: 5 | AQ33: Mark Appel Hou - SP | AR33: 5
C34: ="Draft Order = "&VLOOKUP("Lightning (Mike Goodman)",draft_order,2,FALSE) -> Draft Order = 10 | G34: ="Draft Order = "&VLOOKUP("Evolution (Bruce)",draft_order,2,FALSE) -> Draft Order = 5 | K34: ="Draft Order = "&VLOOKUP("The Soylent Knights (Colin)",draft_order,2,FALSE) -> Draft Order = 7 | O34: ="Draft Order = "&VLOOKUP("Woap (Mike)",draft_order,2,FALSE) -> Draft Order = 9 | S34: ="Draft Order = "&VLOOKUP("The Dominant Brand (Brandon)",draft_order,2,FALSE) -> Draft Order = 2 | W34: ="Draft Order = "&VLOOKUP("Guzzlers (Rhonda)",draft_order,2,FALSE) -> Draft Order = 4 | AA34: ="Draft Order = "&VLOOKUP("The Macon Whoopees (Rob)",draft_order,2,FALSE) -> Draft Order = 6 | AE34: ="Draft Order = "&VLOOKUP("Booya's (Cathy)",draft_order,2,FALSE) -> Draft Order = 8 | AI34: ="Draft Order = "&VLOOKUP("Freebirds (Todd)",draft_order,2,FALSE) -> Draft Order = 3 | AM34: ="Draft Order = "&VLOOKUP("Numbats (Tom)",draft_order,2,FALSE) -> Draft Order = 11 | AQ34: ="Draft Order = "&VLOOKUP("TheDunnShow (Dave)",draft_order,2,FALSE) -> Draft Order = 1
C35: T.J. House Cle -SP | D35: 5 | S35: Asdrubal Cabrera TB - 2B,SS | T35: 8 | AA35: Tony Sipp Hou - RP | AB35: 5 | AI35: Shane Robinson Min - OF | AJ35: 5 | AQ35: Joe Kelly Bos - SP | AR35: 5
C36: Josh Hamilton LAA - OF | D36: 5 | AI36: Stephen Drew NYY - 2B,SS | AJ36: 5
C37: Álex Rodríguez NYY - 3B | D37: 5 | AI37: Dustin Ackley Sea - OF | AJ37: 5

Sheet Draft List
A1: 274 | B1: Owner | C1: Player | D1: Bid | E1: Team/Position | F1: Rank | G1: AB/Innings | H1: R/Wins | I1: HR/Saves | J1: RBI/SO | K1: SB/ERA | L1: Avg./WHIP
A2: 1 | B2: The Soylent Knights (Colin) | C2: Ian Kinsler | D2: 25 | E2: Det - 2B | F2: 58 | G2: 188/684 | H2: 100 | I2: 17 | J2: 92 | K2: 15 | L2: 0.275
A3: 2 | B3: The Soylent Knights (Colin) | C3: Chase Headley | D3: 10 | E3: NYY - 1B,3B | F3: 228 | G3: 114/470 | H3: 55 | I3: 13 | J3: 49 | K3: 7 | L3: 0.243
A4: 3 | B4: The Soylent Knights (Colin) | C4: Erick Aybar | D4: 1 | E4: LAA - SS | F4: 171 | G4: 164/589 | H4: 77 | I4: 7 | J4: 68 | K4: 16 | L4: 0.278
A5: 4 | B5: The Soylent Knights (Colin) | C5: Torii Hunter | D5: 10 | E5: Min - OF | F5: 149 | G5: 157/549 | H5: 71 | I5: 17 | J5: 83 | K5: 4 | L5: 0.286
A6: 5 | B6: The Soylent Knights (Colin) | C6: Taijuan Walker | D6: 15 | E6: Sea - SP | F6: 452 | G6: 38 | H6: 2 | I6: 0 | J6: 34 | K6: 2.61 | L6: 1.29
A7: 6 | B7: The Soylent Knights (Colin) | C7: Michael Pineda | D7: 17 | E7: NYY - SP | F7: 232 | G7: 76.1 | H7: 5 | I7: 0 | J7: 59 | K7: 1.89 | L7: 0.83
A8: 7 | B8: The Soylent Knights (Colin) | C8: Trevor Bauer | D8: 5 | E8: Cle - SP | F8: 953 | G8: 153 | H8: 5 | I8: 0 | J8: 143 | K8: 4.18 | L8: 1.38
A9: 8 | B9: The Soylent Knights (Colin) | C9: Clay Buchholz | D9: 23 | E9: Bos - SP | F9: 1033 | G9: 170.1 | H9: 8 | I9: 0 | J9: 132 | K9: 5.34 | L9: 1.39
A10: 9 | B10: The Soylent Knights (Colin) | C10: Drew Pomeranz | D10: 5 | E10: Oak - SP,RP | F10: 349 | G10: 69 | H10: 5 | I10: 0 | J10: 64 | K10: 2.35 | L10: 1.12
A11: 10 | B11: The Soylent Knights (Colin) | C11: Bruce Rondon | D11: 1 | E11: Det - RP | F11: 604 | G11: - | H11: - | I11: - | J11: - | K11: - | L11: -
A12: 11 | B12: The Soylent Knights (Colin) | C12: Greg Holland | D12: 15 | E12: KC - RP | F12: 73 | G12: 62.1 | H12: 1 | I12: 46 | J12: 90 | K12: 1.44 | L12: 0.91
A13: 12 | B13: The Soylent Knights (Colin) | C13: Carlos Correa | D13: 5 | E13: Hou - SS | F13: 1479 | G13: -/- | H13: - | I13: - | J13: - | K13: - | L13: -
A14: 13 | B14: The Soylent Knights (Colin) | C14: Dalton Pompey | D14: 5 | E14: Tor - OF | F14: 1358 | G14: 9/39 | H14: 5 | I14: 1 | J14: 4 | K14: 1 | L14: 0.231
A15: 14 | B15: Woap (Mike) | C15: Miguel Cabrera | D15: 56 | E15: Det - 1B,3B | F15: 4 | G15: 191/611 | H15: 101 | I15: 25 | J15: 109 | K15: 1 | L15: 0.313
A16: 15 | B16: Woap (Mike) | C16: Josh Donaldson | D16: 10 | E16: Tor - 3B | F16: 32 | G16: 155/608 | H16: 93 | I16: 29 | J16: 98 | K16: 8 | L16: 0.255
A17: 16 | B17: Woap (Mike) | C17: José Bautista | D17: 46 | E17: Tor - 1B,OF | F17: 11 | G17: 158/553 | H17: 101 | I17: 35 | J17: 103 | K17: 6 | L17: 0.286
A18: 17 | B18: Woap (Mike) | C18: Kole Calhoun | D18: 10 | E18: LAA - OF | F18: 76 | G18: 134/493 | H18: 90 | I18: 17 | J18: 58 | K18: 5 | L18: 0.272
A19: 18 | B19: Woap (Mike) | C19: David Price | D19: 31 | E19: Det - SP | F19: 34 | G19: 248.1 | H19: 15 | I19: 0 | J19: 271 | K19: 3.26 | L19: 1.08
A20: 19 | B20: Woap (Mike) | C20: Phil Hughes | D20: 10 | E20: Min - SP | F20: 139 | G20: 209.2 | H20: 16 | I20: 0 | J20: 186 | K20: 3.52 | L20: 1.13
A21: 20 | B21: Woap (Mike) | C21: Collin McHugh | D21: 10 | E21: Hou - SP | F21: 221 | G21: 154.2 | H21: 11 | I21: 0 | J21: 157 | K21: 2.73 | L21: 1.02
A22: 21 | B22: Woap (Mike) | C22: Dellin Betances | D22: 10 | E22: NYY - RP | F22: 114 | G22: 90 | H22: 5 | I22: 1 | J22: 135 | K22: 1.4 | L22: 0.78
A23: 22 | B23: Woap (Mike) | C23: Rusney Castillo | D23: 5 | E23: Bos - OF | F23: 176 | G23: 12/36 | H23: 6 | I23: 2 | J23: 6 | K23: 3 | L23: 0.333
A24: 23 | B24: Woap (Mike) | C24: Daniel Norris | D24: 5 | E24: Tor - SP | F24: - | G24: - | H24: - | I24: - | J24: - | K24: - | L24: 0.333
A25: 24 | B25: The Dominant Brand (Brandon) | C25: Matt Wieters | D25: 10 | E25: Bal - C | F25: 177 | G25: 32/104 | H25: 13 | I25: 5 | J25: 18 | K25: 0 | L25: 0.308
A26: 25 | B26: The Dominant Brand (Brandon) | C26: Alex Gordon | D26: 21 | E26: KC - OF | F26: 68 | G26: 150/563 | H26: 87 | I26: 19 | J26: 74 | K26: 12 | L26: 0.266
A27: 26 | B27: The Dominant Brand (Brandon) | C27: Anibal Sánchez | D27: 15 | E27: Det - SP | F27: 106 | G27: 126 | H27: 8 | I27: 0 | J27: 102 | K27: 3.43 | L27: 1.1
A28: 27 | B28: The Dominant Brand (Brandon) | C28: Corey Kluber | D28: 10 | E28: Cle - SP | F28: 37 | G28: 235.2 | H28: 18 | I28: 0 | J28: 269 | K28: 2.44 | L28: 1.09
A29: 28 | B29: The Dominant Brand (Brandon) | C29: Mark Buehrle | D29: 5 | E29: Tor - SP | F29: 410 | G29: 202 | H29: 13 | I29: 0 | J29: 119 | K29: 3.39 | L29: 1.36
A30: 29 | B30: The Dominant Brand (Brandon) | C30: R.A. Dickey | D30: 19 | E30: Tor - SP | F30: 253 | G30: 215.2 | H30: 14 | I30: 0 | J30: 173 | K30: 3.71 | L30: 1.23
A31: 30 | B31: The Dominant Brand (Brandon) | C31: Kendrys Morales | D31: 5 | E31: KC - 1B | F31: 995 | G31: 80/367 | H31: 28 | I31: 8 | J31: 42 | K31: 0 | L31: 0.218
A32: 31 | B32: Guzzlers (Rhonda) | C32: Adam Jones | D32: 46 | E32: Bal - OF | F32: 9 | G32: 181/644 | H32: 88 | I32: 29 | J32: 96 | K32: 7 | L32: 0.281
A33: 32 | B33: Guzzlers (Rhonda) | C33: Sonny Gray | D33: 15 | E33: Oak - SP | F33: 81 | G33: 219 | H33: 14 | I33: 0 | J33: 183 | K33: 3.08 | L33: 1.19
A34: 33 | B34: Guzzlers (Rhonda) | C34: Drew Hutchison | D34: 6 | E34: Tor - SP | F34: 436 | G34: 184.2 | H34: 11 | I34: 0 | J34: 184 | K34: 4.48 | L34: 1.26
A35: 34 | B35: Guzzlers (Rhonda) | C35: Danny Salazar | D35: 5 | E35: Cle - SP | F35: 236 | G35: 110 | H35: 6 | I35: 0 | J35: 120 | K35: 4.25 | L35: 1.38
A36: 35 | B36: Guzzlers (Rhonda) | C36: Jeff Samardzija | D36: 5 | E36: CWS - SP | F36: 80 | G36: 219.2 | H36: 7 | I36: 0 | J36: 202 | K36: 2.99 | L36: 1.07
A37: 36 | B37: Guzzlers (Rhonda) | C37: Mookie Betts | D37: 5 | E37: Bos - 2B,OF | F37: 93 | G37: 55/189 | H37: 34 | I37: 5 | J37: 18 | K37: 7 | L37: 0.291
A38: 37 | B38: Guzzlers (Rhonda) | C38: Cody Allen | D38: 6 | E38: Cle - RP | F38: 123 | G38: 69.2 | H38: 6 | I38: 24 | J38: 91 | K38: 2.07 | L38: 1.06
A39: 38 | B39: Guzzlers (Rhonda) | C39: Andrew Miller | D39: 10 | E39: NYY - RP | F39: 287 | G39: 62.1 | H39: 5 | I39: 1 | J39: 103 | K39: 2.02 | L39: 0.8
A40: 39 | B40: Guzzlers (Rhonda) | C40: Xander Bogaerts | D40: 5 | E40: Bos - 3B,SS | F40: 211 | G40: 129/538 | H40: 60 | I40: 12 | J40: 46 | K40: 2 | L40: 0.24
A41: 40 | B41: Numbats (Tom) | C41: Stephen Vogt | D41: 5 | E41: Oak - C,1B,OF | F41: 270 | G41: 75/269 | H41: 26 | I41: 9 | J41: 35 | K41: 1 | L41: 0.279
A42: 41 | B42: Numbats (Tom) | C42: Albert Pujols | D42: 31 | E42: LAA - 1B | F42: 40 | G42: 172/633 | H42: 89 | I42: 28 | J42: 105 | K42: 5 | L42: 0.272
A43: 42 | B43: Numbats (Tom) | C43: Danny Santana | D43: 5 | E43: Min - SS,OF | F43: 182 | G43: 129/405 | H43: 70 | I43: 7 | J43: 40 | K43: 20 | L43: 0.319
A44: 43 | B44: Numbats (Tom) | C44: Lorenzo Cain | D44: 5 | E44: KC - OF | F44: 144 | G44: 142/471 | H44: 55 | I44: 5 | J44: 53 | K44: 28 | L44: 0.301
A45: 44 | B45: Numbats (Tom) | C45: Mike Trout | D45: 15 | E45: LAA - OF | F45: 1 | G45: 173/602 | H45: 115 | I45: 36 | J45: 111 | K45: 16 | L45: 0.287
A46: 45 | B46: Numbats (Tom) | C46: Carlos Carrasco | D46: 10 | E46: Cle - SP,RP | F46: 125 | G46: 134 | H46: 8 | I46: 1 | J46: 140 | K46: 2.55 | L46: 0.99
A47: 46 | B47: Numbats (Tom) | C47: Matt Shoemaker | D47: 10 | E47: LAA - SP,RP | F47: 217 | G47: 136 | H47: 16 | I47: 0 | J47: 124 | K47: 3.04 | L47: 1.07
A48: 47 | B48: Numbats (Tom) | C48: Danny Duffy | D48: 5 | E48: KC - SP,RP | F48: 286 | G48: 149.1 | H48: 9 | I48: 0 | J48: 113 | K48: 2.53 | L48: 1.11
A49: 48 | B49: Numbats (Tom) | C49: Jered Weaver | D49: 21 | E49: LAA - SP | F49: 178 | G49: 213.1 | H49: 18 | I49: 0 | J49: 169 | K49: 3.59 | L49: 1.21
A50: 49 | B50: Numbats (Tom) | C50: Sean Doolittle | D50: 5 | E50: Oak - RP | F50: 262 | G50: 62.2 | H50: 2 | I50: 22 | J50: 89 | K50: 2.73 | L50: 0.73
A51: 50 | B51: Numbats (Tom) | C51: Fernando Rodney | D51: 21 | E51: Sea - RP | F51: 164 | G51: 66.1 | H51: 1 | I51: 48 | J51: 76 | K51: 2.85 | L51: 1.34
A52: 51 | B52: Numbats (Tom) | C52: Wade Davis | D52: 5 | E52: KC - RP | F52: 280 | G52: 72 | H52: 9 | I52: 3 | J52: 109 | K52: 1 | L52: 0.85
A53: 52 | B53: Numbats (Tom) | C53: Nick Franklin | D53: 5 | E53: TB - 2B,SS | F53: 1262 | G53: 13/81 | H53: 7 | I53: 1 | J53: 6 | K53: 2 | L53: 0.16
A54: 53 | B54: Numbats (Tom) | C54: Allen Craig | D54: 5 | E54: Bos - 1B,OF | F54: 728 | G54: 99/461 | H54: 41 | I54: 8 | J54: 46 | K54: 2 | L54: 0.215
A55: 54 | B55: Numbats (Tom) | C55: Mark Appel | D55: 5 | E55: Hou - SP | F55: 647 | G55: - | H55: - | I55: - | J55: - | K55: - | L55: -
A56: 55 | B56: Lightning (Mike Goodman) | C56: Brian McCann | D56: 20 | E56: NYY - C,1B | F56: 167 | G56: 115/495 | H56: 57 | I56: 23 | J56: 75 | K56: 0 | L56: 0.232
A57: 56 | B57: Lightning (Mike Goodman) | C57: Jurickson Profar | D57: 15 | E57: Tex - 2B,SS | F57: 1325 | G57: -/- | H57: - | I57: - | J57: - | K57: - | L57: -
A58: 57 | B58: Lightning (Mike Goodman) | C58: Mike Moustakas | D58: 11 | E58: KC - 3B | F58: 931 | G58: 97/457 | H58: 45 | I58: 15 | J58: 54 | K58: 1 | L58: 0.212
A59: 58 | B59: Lightning (Mike Goodman) | C59: Brett Gardner | D59: 18 | E59: NYY - OF | F59: 97 | G59: 142/555 | H59: 87 | I59: 17 | J59: 58 | K59: 21 | L59: 0.256
A60: 59 | B60: Lightning (Mike Goodman) | C60: Avisail García | D60: 5 | E60: CWS - OF | F60: 227 | G60: 42/172 | H60: 19 | I60: 7 | J60: 29 | K60: 4 | L60: 0.244
A61: 60 | B61: Lightning (Mike Goodman) | C61: Yordano Ventura | D61: 10 | E61: KC - SP | F61: 153 | G61: 183 | H61: 14 | I61: 0 | J61: 159 | K61: 3.2 | L61: 1.3
A62: 61 | B62: Lightning (Mike Goodman) | C62: Kevin Gausman | D62: 15 | E62: Bal - SP | F62: 449 | G62: 113.1 | H62: 7 | I62: 0 | J62: 88 | K62: 3.57 | L62: 1.31
A63: 62 | B63: Lightning (Mike Goodman) | C63: Drew Smyly | D63: 14 | E63: TB - SP | F63: 209 | G63: 153 | H63: 9 | I63: 0 | J63: 133 | K63: 3.24 | L63: 1.16
A64: 63 | B64: Lightning (Mike Goodman) | C64: Scott Kazmir | D64: 10 | E64: Oak - SP | F64: 189 | G64: 190.1 | H64: 15 | I64: 0 | J64: 164 | K64: 3.55 | L64: 1.16
A65: 64 | B65: Lightning (Mike Goodman) | C65: Brad Boxberger | D65: 5 | E65: TB - RP | F65: 289 | G65: 64.2 | H65: 5 | I65: 2 | J65: 104 | K65: 2.37 | L65: 0.84
A66: 65 | B66: Lightning (Mike Goodman) | C66: Francisco Lindor | D66: 5 | E66: Cle - SS | F66: 1532 | G66: -/- | H66: - | I66: - | J66: - | K66: - | L66: -
A67: 66 | B67: Lightning (Mike Goodman) | C67: Neftali Feliz | D67: 5 | E67: Tex - RP | F67: 210 | G67: 31.2 | H67: 2 | I67: 13 | J67: 21 | K67: 1.99 | L67: 0.98
A68: 67 | B68: Booya's (Cathy) | C68: José Altuve | D68: 21 | E68: Hou - 2B | F68: 17 | G68: 225/660 | H68: 85 | I68: 7 | J68: 59 | K68: 56 | L68: 0.341
A69: 68 | B69: Booya's (Cathy) | C69: Nelson Cruz | D69: 23 | E69: Sea - OF | F69: 65 | G69: 166/613 | H69: 87 | I69: 40 | J69: 108 | K69: 4 | L69: 0.271
A70: 69 | B70: Booya's (Cathy) | C70: Álex Ríos | D70: 26 | E70: KC - OF | F70: 140 | G70: 138/492 | H70: 54 | I70: 4 | J70: 54 | K70: 17 | L70: 0.28
A71: 70 | B71: Booya's (Cathy) | C71: J.D. Martínez | D71: 10 | E71: Det - OF | F71: 95 | G71: 139/441 | H71: 57 | I71: 23 | J71: 76 | K71: 6 | L71: 0.315
A72: 71 | B72: Booya's (Cathy) | C72: Derek Holland | D72: 7 | E72: Tex - SP | F72: 342 | G72: 37 | H72: 2 | I72: 0 | J72: 25 | K72: 1.46 | L72: 1.05
A73: 72 | B73: Booya's (Cathy) | C73: Dallas Keuchel | D73: 10 | E73: Hou - SP | F73: 260 | G73: 200 | H73: 12 | I73: 0 | J73: 146 | K73: 2.93 | L73: 1.18
A74: 73 | B74: Booya's (Cathy) | C74: Hisashi Iwakuma | D74: 27 | E74: Sea - SP | F74: 78 | G74: 179 | H74: 15 | I74: 0 | J74: 154 | K74: 3.52 | L74: 1.05
A75: 74 | B75: Booya's (Cathy) | C75: Koji Uehara | D75: 26 | E75: Bos - RP | F75: 117 | G75: 64.1 | H75: 6 | I75: 26 | J75: 80 | K75: 2.52 | L75: 0.92
A76: 75 | B76: Booya's (Cathy) | C76: Glen Perkins | D76: 31 | E76: Min - RP | F76: 148 | G76: 61.2 | H76: 4 | I76: 34 | J76: 66 | K76: 3.65 | L76: 1.18
A77: 76 | B77: Evolution (Bruce) | C77: Yan Gomes | D77: 15 | E77: Cle - C | F77: 104 | G77: 135/485 | H77: 61 | I77: 21 | J77: 74 | K77: 0 | L77: 0.278
A78: 77 | B78: Evolution (Bruce) | C78: José Abreu | D78: 22 | E78: CWS - 1B | F78: 8 | G78: 176/556 | H78: 80 | I78: 36 | J78: 107 | K78: 3 | L78: 0.317
A79: 78 | B79: Evolution (Bruce) | C79: Jason Kipnis | D79: 15 | E79: Cle - 2B | F79: 90 | G79: 120/500 | H79: 61 | I79: 6 | J79: 41 | K79: 22 | L79: 0.24
A80: 79 | B80: Evolution (Bruce) | C80: Manny Machado | D80: 15 | E80: Bal - 3B | F80: 132 | G80: 91/327 | H80: 38 | I80: 12 | J80: 32 | K80: 2 | L80: 0.278
A81: 80 | B81: Evolution (Bruce) | C81: Alcides Escobar | D81: 5 | E81: KC - SS | F81: 201 | G81: 165/579 | H81: 74 | I81: 3 | J81: 50 | K81: 31 | L81: 0.285
A82: 81 | B82: Evolution (Bruce) | C82: George Springer | D82: 15 | E82: Hou - OF | F82: 55 | G82: 68/295 | H82: 45 | I82: 20 | J82: 51 | K82: 5 | L82: 0.231
A83: 82 | B83: Evolution (Bruce) | C83: Matt Moore | D83: 11 | E83: TB - SP | F83: 443 | G83: 10 | H83: 0 | I83: 0 | J83: 6 | K83: 2.7 | L83: 1.5
A84: 83 | B84: Evolution (Bruce) | C84: Rick Porcello | D84: 6 | E84: Bos - SP | F84: 222 | G84: 204.2 | H84: 15 | I84: 0 | J84: 129 | K84: 3.43 | L84: 1.23
A85: 84 | B85: Evolution (Bruce) | C85: Chris Archer | D85: 6 | E85: TB - SP | F85: 138 | G85: 194.2 | H85: 10 | I85: 0 | J85: 173 | K85: 3.33 | L85: 1.28
A86: 85 | B86: Evolution (Bruce) | C86: Masahiro Tanaka | D86: 30 | E86: NYY - SP | F86: 129 | G86: 136.1 | H86: 13 | I86: 0 | J86: 141 | K86: 2.77 | L86: 1.06
A87: 86 | B87: Evolution (Bruce) | C87: Luke Gregerson | D87: 1 | E87: Hou - RP | F87: 191 | G87: 72.1 | H87: 5 | I87: 3 | J87: 59 | K87: 2.12 | L87: 1.01
A88: 87 | B88: Evolution (Bruce) | C88: Huston Street | D88: 10 | E88: LAA - RP | F88: 151 | G88: 59.1 | H88: 2 | I88: 41 | J88: 57 | K88: 1.37 | L88: 0.94
A89: 88 | B89: Evolution (Bruce) | C89: Zach Britton | D89: 10 | E89: Bal - RP | F89: 165 | G89: 76.1 | H89: 3 | I89: 37 | J89: 62 | K89: 1.65 | L89: 0.9
A90: 89 | B90: Evolution (Bruce) | C90: Byron Buxton | D90: 5 | E90: Min - OF | F90: 1525 | G90: -/- | H90: - | I90: - | J90: - | K90: - | L90: -
A91: 90 | B91: Evolution (Bruce) | C91: Miguel Sano | D91: 5 | E91: Min - 3B,SS | F91: 1503 | G91: -/- | H91: - | I91: - | J91: - | K91: - | L91: -
A92: 91 | B92: Evolution (Bruce) | C92: Aarón Sánchez | D92: 5 | E92: Tor - RP | F92: 334 | G92: 33 | H92: 2 | I92: 3 | J92: 27 | K92: 1.09 | L92: 0.7
A93: 92 | B93: Evolution (Bruce) | C93: Kelvin Herrera | D93: 1 | E93: KC - RP | F93: 300 | G93: 70 | H93: 4 | I93: 0 | J93: 59 | K93: 1.41 | L93: 1.14
A94: 93 | B94: The Macon Whoopees (Rob) | C94: Leonys Martín | D94: 10 | E94: Tex - OF | F94: 142 | G94: 146/533 | H94: 68 | I94: 7 | J94: 40 | K94: 31 | L94: 0.274
A95: 94 | B95: The Macon Whoopees (Rob) | C95: Garrett Richards | D95: 11 | E95: LAA - SP | F95: 136 | G95: 168.2 | H95: 13 | I95: 0 | J95: 164 | K95: 2.61 | L95: 1.04
A96: 95 | B96: The Macon Whoopees (Rob) | C96: Félix Hernández | D96: 40 | E96: Sea - SP | F96: 12 | G96: 236 | H96: 15 | I96: 0 | J96: 248 | K96: 2.14 | L96: 0.92
A97: 96 | B97: The Macon Whoopees (Rob) | C97: Logan Morrison | D97: 5 | E97: Sea - 1B,OF | F97: 624 | G97: 88/336 | H97: 41 | I97: 11 | J97: 38 | K97: 5 | L97: 0.262
A98: 97 | B98: Freebirds (Todd) | C98: Carlos Santana | D98: 24 | E98: Cle - C,1B,3B | F98: 89 | G98: 125/541 | H98: 68 | I98: 27 | J98: 85 | K98: 5 | L98: 0.231
A99: 98 | B99: Freebirds (Todd) | C99: Jake Odorizzi | D99: 3 | E99: TB - SP | F99: 205 | G99: 168 | H99: 11 | I99: 0 | J99: 174 | K99: 4.13 | L99: 1.28
A100: 99 | B100: Freebirds (Todd) | C100: Chris Tillman | D100: 8 | E100: Bal - SP | F100: 230 | G100: 207.1 | H100: 13 | I100: 0 | J100: 150 | K100: 3.34 | L100: 1.23
A101: 100 | B101: Freebirds (Todd) | C101: Marcus Stroman | D101: 15 | E101: Tor - SP,RP | F101: 184 | G101: 130.2 | H101: 11 | I101: 1 | J101: 111 | K101: 3.65 | L101: 1.17
A102: 101 | B102: Freebirds (Todd) | C102: David Robertson | D102: 31 | E102: CWS - RP | F102: 92 | G102: 64.1 | H102: 4 | I102: 39 | J102: 96 | K102: 3.08 | L102: 1.06
A103: 102 | B103: Freebirds (Todd) | C103: Junichi Tazawa | D103: 1 | E103: Bos - RP | F103: 345 | G103: 63 | H103: 4 | I103: 0 | J103: 64 | K103: 2.86 | L103: 1.19
A104: 103 | B104: Freebirds (Todd) | C104: Stephen Drew | D104: 5 | E104: NYY - 2B,SS | F104: 1184 | G104: 44/271 | H104: 18 | I104: 7 | J104: 26 | K104: 1 | L104: 0.162
A105: 104 | B105: Freebirds (Todd) | C105: Joey Gallo | D105: 5 | E105: Tex - 3B | F105: 1534 | G105: -/- | H105: - | I105: - | J105: - | K105: - | L105: -
A106: 105 | B106: TheDunnShow (Dave) | C106: Hanley Ramírez | D106: 51 | E106: Bos - SS | F106: 23 | G106: 127/449 | H106: 64 | I106: 13 | J106: 71 | K106: 14 | L106: 0.283
A107: 106 | B107: Guzzlers (Rhonda) | C107: Robinson Canó | D107: 49 | E107: Sea - 2B | F107: 15 | G107: 187/595 | H107: 77 | I107: 14 | J107: 82 | K107: 10 | L107: 0.314
A108: 107 | B108: The Soylent Knights (Colin) | C108: Salvador Pérez | D108: 14 | E108: KC - C | F108: 121 | G108: 150/578 | H108: 57 | I108: 17 | J108: 70 | K108: 1 | L108: 0.26
A109: 108 | B109: Numbats (Tom) | C109: Evan Gattis | D109: 36 | E109: Hou - C | F109: 134 | G109: 97/369 | H109: 41 | I109: 22 | J109: 52 | K109: 0 | L109: 0.263
A110: 109 | B110: Lightning (Mike Goodman) | C110: Edwin Encarnación | D110: 48 | E110: Tor - 1B | F110: 14 | G110: 128/477 | H110: 75 | I110: 34 | J110: 98 | K110: 2 | L110: 0.268
A111: 110 | B111: Guzzlers (Rhonda) | C111: Adrián Béltre | D111: 40 | E111: Tex - 3B | F111: 18 | G111: 178/549 | H111: 79 | I111: 19 | J111: 77 | K111: 1 | L111: 0.324
A112: 111 | B112: The Soylent Knights (Colin) | C112: Chris Sale | D112: 50 | E112: CWS - SP | F112: 16 | G112: 174 | H112: 12 | I112: 0 | J112: 208 | K112: 2.17 | L112: 0.97
A113: 112 | B113: Numbats (Tom) | C113: Kyle Seager | D113: 38 | E113: Sea - 3B | F113: 66 | G113: 158/590 | H113: 71 | I113: 25 | J113: 96 | K113: 7 | L113: 0.268
A114: 113 | B114: Lightning (Mike Goodman) | C114: Jacoby Ellsbury | D114: 49 | E114: NYY - OF | F114: 25 | G114: 156/575 | H114: 71 | I114: 16 | J114: 70 | K114: 39 | L114: 0.271
A115: 114 | B115: Freebirds (Todd) | C115: Tyler Clippard | D115: 21 | E115: Oak - RP | F115: 197 | G115: 70.1 | H115: 7 | I115: 1 | J115: 82 | K115: 2.18 | L115: 1
A116: 115 | B116: Booya's (Cathy) | C116: Jake McGee | D116: 20 | E116: TB - RP | F116: 224 | G116: 71.1 | H116: 5 | I116: 19 | J116: 90 | K116: 1.89 | L116: 0.9
A117: 116 | B117: Numbats (Tom) | C117: Yu Darvish | D117: 13 | E117: Tex - SP | F117: 31 | G117: 144.1 | H117: 10 | I117: 0 | J117: 182 | K117: 3.06 | L117: 1.26
A118: 117 | B118: Guzzlers (Rhonda) | C118: Alex Cobb | D118: 20 | E118: TB - SP | F118: 74 | G118: 166.1 | H118: 10 | I118: 0 | J118: 149 | K118: 2.87 | L118: 1.14
A119: 118 | B119: The Macon Whoopees (Rob) | C119: Víctor Martínez | D119: 32 | E119: Det - 1B | F119: 43 | G119: 188/561 | H119: 87 | I119: 32 | J119: 103 | K119: 3 | L119: 0.335
A120: 119 | B120: The Dominant Brand (Brandon) | C120: Michael Brantley | D120: 46 | E120: Cle - OF | F120: 29 | G120: 200/611 | H120: 94 | I120: 20 | J120: 97 | K120: 23 | L120: 0.327
A121: 120 | B121: The Dominant Brand (Brandon) | C121: José Reyes | D121: 36 | E121: Tor - SS | F121: 53 | G121: 175/610 | H121: 94 | I121: 9 | J121: 51 | K121: 30 | L121: 0.287
A122: 121 | B122: Woap (Mike) | C122: Brian Dozier | D122: 36 | E122: Min - 2B | F122: 88 | G122: 145/598 | H122: 112 | I122: 23 | J122: 71 | K122: 21 | L122: 0.242
A123: 122 | B123: The Soylent Knights (Colin) | C123: Yoenis Céspedes | D123: 37 | E123: Det - OF | F123: 54 | G123: 156/600 | H123: 89 | I123: 22 | J123: 100 | K123: 7 | L123: 0.26
A124: 123 | B124: TheDunnShow (Dave) | C124: David Ortiz | D124: 45 | E124: Bos - 1B | F124: 45 | G124: 136/518 | H124: 59 | I124: 35 | J124: 104 | K124: 0 | L124: 0.263
A125: 124 | B125: Freebirds (Todd) | C125: Chris Carter | D125: 40 | E125: Hou - 1B,OF | F125: 98 | G125: 115/507 | H125: 68 | I125: 37 | J125: 88 | K125: 5 | L125: 0.227
A126: 125 | B126: The Dominant Brand (Brandon) | C126: Joe Smith | D126: 4 | E126: LAA - RP | F126: 278 | G126: 74.2 | H126: 7 | I126: 15 | J126: 68 | K126: 1.81 | L126: 0.8
A127: 126 | B127: Freebirds (Todd) | C127: Prince Fielder | D127: 28 | E127: Tex - 1B | F127: 50 | G127: 37/150 | H127: 19 | I127: 3 | J127: 16 | K127: 0 | L127: 0.247
A128: 127 | B128: Booya's (Cathy) | C128: Russell Martin | D128: 19 | E128: Tor - C | F128: 187 | G128: 110/379 | H128: 45 | I128: 11 | J128: 67 | K128: 4 | L128: 0.29
A129: 128 | B129: Freebirds (Todd) | C129: Evan Longoria | D129: 35 | E129: TB - 3B | F129: 71 | G129: 158/624 | H129: 83 | I129: 22 | J129: 91 | K129: 5 | L129: 0.253
A130: 129 | B130: The Macon Whoopees (Rob) | C130: Alexei Ramírez | D130: 22 | E130: CWS - SS | F130: 101 | G130: 170/622 | H130: 82 | I130: 15 | J130: 74 | K130: 21 | L130: 0.273
A131: 130 | B131: Evolution (Bruce) | C131: Chris Davis | D131: 45 | E131: Bal - 1B,3B | F131: 119 | G131: 88/450 | H131: 65 | I131: 26 | J131: 72 | K131: 2 | L131: 0.196
A132: 131 | B132: Lightning (Mike Goodman) | C132: Adam LaRoche | D132: 27 | E132: CWS - 1B | F132: 120 | G132: 128/494 | H132: 73 | I132: 26 | J132: 92 | K132: 3 | L132: 0.259
A133: 132 | B133: The Dominant Brand (Brandon) | C133: Eric Hosmer | D133: 6 | E133: KC - 1B | F133: 128 | G133: 136/503 | H133: 54 | I133: 9 | J133: 58 | K133: 4 | L133: 0.27
A134: 133 | B134: The Macon Whoopees (Rob) | C134: Justin Verlander | D134: 31 | E134: Det - SP | F134: 172 | G134: 206 | H134: 15 | I134: 0 | J134: 159 | K134: 4.54 | L134: 1.4
A135: 134 | B135: Evolution (Bruce) | C135: Brandon Moss | D135: 26 | E135: Cle - 1B,OF | F135: 150 | G135: 117/500 | H135: 70 | I135: 25 | J135: 81 | K135: 1 | L135: 0.234
A136: 135 | B136: Guzzlers (Rhonda) | C136: Steve Pearce | D136: 21 | E136: Bal - 1B,OF | F136: 192 | G136: 99/338 | H136: 51 | I136: 21 | J136: 49 | K136: 5 | L136: 0.293
A137: 136 | B137: TheDunnShow (Dave) | C137: Darren O'Day | D137: 2 | E137: Bal - RP | F137: 282 | G137: 68.2 | H137: 5 | I137: 4 | J137: 73 | K137: 1.7 | L137: 0.89
A138: 137 | B138: TheDunnShow (Dave) | C138: Dustin Pedroia | D138: 32 | E138: Bos - 2B | F138: 103 | G138: 153/551 | H138: 72 | I138: 7 | J138: 53 | K138: 6 | L138: 0.278
A139: 138 | B139: Guzzlers (Rhonda) | C139: Pablo Sandoval | D139: 28 | E139: Bos - 3B | F139: 102 | G139: 164/588 | H139: 68 | I139: 16 | J139: 73 | K139: 0 | L139: 0.279
A140: 139 | B140: Woap (Mike) | C140: Elvis Andrus | D140: 16 | E140: Tex - SS | F140: 112 | G140: 163/619 | H140: 72 | I140: 2 | J140: 41 | K140: 27 | L140: 0.263
A141: 140 | B141: Freebirds (Todd) | C141: Austin Jackson | D141: 9 | E141: Sea - OF | F141: 152 | G141: 153/597 | H141: 71 | I141: 4 | J141: 47 | K141: 20 | L141: 0.256
A142: 141 | B142: Numbats (Tom) | C142: Shin-Soo Choo | D142: 7 | E142: Tex - OF | F142: 161 | G142: 110/455 | H142: 58 | I142: 13 | J142: 40 | K142: 3 | L142: 0.242
A143: 142 | B143: Booya's (Cathy) | C143: Ben Zobrist | D143: 28 | E143: Oak - 2B,SS,OF | F143: 174 | G143: 155/570 | H143: 83 | I143: 10 | J143: 52 | K143: 10 | L143: 0.272
A144: 143 | B144: The Dominant Brand (Brandon) | C144: Asdrubal Cabrera | D144: 8 | E144: TB - 2B,SS | F144: 251 | G144: 133/553 | H144: 74 | I144: 14 | J144: 61 | K144: 10 | L144: 0.241
A145: 144 | B145: The Macon Whoopees (Rob) | C145: Coco Crisp | D145: 5 | E145: Oak - OF | F145: 169 | G145: 114/463 | H145: 68 | I145: 9 | J145: 47 | K145: 19 | L145: 0.246
A146: 145 | B146: Lightning (Mike Goodman) | C146: Pat Neshek | D146: 1 | E146: Hou - RP | F146: 283 | G146: 67.1 | H146: 7 | I146: 6 | J146: 68 | K146: 1.87 | L146: 0.79
A147: 146 | B147: The Dominant Brand (Brandon) | C147: Joe Nathan | D147: 19 | E147: Det - RP | F147: 292 | G147: 58 | H147: 5 | I147: 35 | J147: 54 | K147: 4.81 | L147: 1.53
A148: 147 | B148: The Macon Whoopees (Rob) | C148: Dan Otero | D148: 2 | E148: Oak - RP | F148: 297 | G148: 86.2 | H148: 8 | I148: 1 | J148: 45 | K148: 2.28 | L148: 1.1
A149: 148 | B149: Numbats (Tom) | C149: Brett Lawrie | D149: 16 | E149: Oak - 2B,3B | F149: 254 | G149: 64/259 | H149: 27 | I149: 12 | J149: 38 | K149: 0 | L149: 0.247
A150: 149 | B150: The Macon Whoopees (Rob) | C150: José Quintana | D150: 18 | E150: CWS - SP | F150: 188 | G150: 200.1 | H150: 9 | I150: 0 | J150: 178 | K150: 3.32 | L150: 1.24
A151: 150 | B151: The Soylent Knights (Colin) | C151: Omar Infante | D151: 1 | E151: KC - 2B | F151: 352 | G151: 133/528 | H151: 50 | I151: 6 | J151: 66 | K151: 9 | L151: 0.252
A152: 151 | B152: The Dominant Brand (Brandon) | C152: Rajai Davis | D152: 7 | E152: Det - OF | F152: 180 | G152: 130/461 | H152: 64 | I152: 8 | J152: 51 | K152: 36 | L152: 0.282
A153: 152 | B153: Guzzlers (Rhonda) | C153: Bryan Shaw | D153: 2 | E153: Cle - RP | F153: 302 | G153: 76.1 | H153: 5 | I153: 2 | J153: 64 | K153: 2.59 | L153: 1.09
A154: 153 | B154: Evolution (Bruce) | C154: Ervin Santana | D154: 20 | E154: Min - SP | F154: 214 | G154: 196 | H154: 14 | I154: 0 | J154: 179 | K154: 3.95 | L154: 1.31
A155: 154 | B155: Booya's (Cathy) | C155: Yovani Gallardo | D155: 3 | E155: Tex - SP | F155: 246 | G155: 192.1 | H155: 8 | I155: 0 | J155: 146 | K155: 3.51 | L155: 1.29
A156: 155 | B156: Woap (Mike) | C156: Mike Napoli | D156: 8 | E156: Bos - 1B | F156: 196 | G156: 103/415 | H156: 49 | I156: 17 | J156: 55 | K156: 3 | L156: 0.248
A157: 156 | B157: TheDunnShow (Dave) | C157: James Paxton | D157: 11 | E157: Sea - SP | F157: 248 | G157: 74 | H157: 6 | I157: 0 | J157: 59 | K157: 3.04 | L157: 1.2
A158: 157 | B158: Woap (Mike) | C158: Wei-Yin Chen | D158: 7 | E158: Bal - SP | F158: 252 | G158: 185.2 | H158: 16 | I158: 0 | J158: 136 | K158: 3.54 | L158: 1.23
A159: 158 | B159: Freebirds (Todd) | C159: Dominic Leone | D159: 2 | E159: Sea - RP | F159: 305 | G159: 66.1 | H159: 8 | I159: 0 | J159: 70 | K159: 2.17 | L159: 1.16
A160: 159 | B160: TheDunnShow (Dave) | C160: Mike Zunino | D160: 5 | E160: Sea - C | F160: 838 | G160: 87/438 | H160: 51 | I160: 22 | J160: 60 | K160: 0 | L160: 0.199
A161: 160 | B161: The Soylent Knights (Colin) | C161: Joe Mauer | D161: 3 | E161: Min - 1B | F161: 202 | G161: 126/455 | H161: 60 | I161: 4 | J161: 55 | K161: 3 | L161: 0.277
A162: 161 | B162: Evolution (Bruce) | C162: Oswaldo Arcia | D162: 5 | E162: Min - OF | F162: 243 | G162: 86/372 | H162: 46 | I162: 20 | J162: 57 | K162: 1 | L162: 0.231
A163: 162 | B163: The Dominant Brand (Brandon) | C163: Edinson Vólquez | D163: 11 | E163: KC - SP | F163: 330 | G163: 192.2 | H163: 13 | I163: 0 | J163: 140 | K163: 3.04 | L163: 1.23
A164: 163 | B164: The Macon Whoopees (Rob) | C164: Melky Cabrera | D164: 32 | E164: CWS - OF | F164: 195 | G164: 171/568 | H164: 81 | I164: 16 | J164: 73 | K164: 6 | L164: 0.301
A165: 164 | B165: The Dominant Brand (Brandon) | C165: Trevor Plouffe | D165: 1 | E165: Min - 3B | F165: 295 | G165: 134/520 | H165: 69 | I165: 14 | J165: 80 | K165: 2 | L165: 0.258
A166: 165 | B166: The Macon Whoopees (Rob) | C166: Jesse Chavez | D166: 10 | E166: Oak - SP,RP | F166: 366 | G166: 146 | H166: 8 | I166: 0 | J166: 136 | K166: 3.45 | L166: 1.31
A167: 166 | B167: TheDunnShow (Dave) | C167: Adam Eaton | D167: 4 | E167: CWS - OF | F167: 200 | G167: 146/486 | H167: 76 | I167: 1 | J167: 35 | K167: 15 | L167: 0.3
A168: 167 | B168: TheDunnShow (Dave) | C168: Anthony Gose | D168: 6 | E168: Det - OF | F168: 1132 | G168: 54/239 | H168: 31 | I168: 2 | J168: 13 | K168: 15 | L168: 0.226
A169: 168 | B169: TheDunnShow (Dave) | C169: Joakim Soria | D169: 23 | E169: Det - RP | F169: 321 | G169: 44.1 | H169: 2 | I169: 18 | J169: 48 | K169: 3.25 | L169: 0.99
A170: 169 | B170: The Dominant Brand (Brandon) | C170: Brett Cecil | D170: 16 | E170: Tor - RP | F170: 350 | G170: 53.1 | H170: 2 | I170: 5 | J170: 76 | K170: 2.7 | L170: 1.37
A171: 170 | B171: Freebirds (Todd) | C171: Steven Souza | D171: 17 | E171: TB - OF | F171: 235 | G171: 3/23 | H171: 2 | I171: 2 | J171: 2 | K171: 0 | L171: 0.13
A172: 171 | B172: The Soylent Knights (Colin) | C172: Shane Victorino | D172: 1 | E172: Bos - OF | F172: 1065 | G172: 33/123 | H172: 14 | I172: 2 | J172: 12 | K172: 2 | L172: 0.268
A173: 172 | B173: Freebirds (Todd) | C173: Luis Valbuena | D173: 8 | E173: Hou - 2B,3B | F173: 379 | G173: 119/478 | H173: 68 | I173: 16 | J173: 51 | K173: 1 | L173: 0.249
A174: 173 | B174: Booya's (Cathy) | C174: Bud Norris | D174: 5 | E174: Bal - SP | F174: 309 | G174: 165.1 | H174: 15 | I174: 0 | J174: 139 | K174: 3.65 | L174: 1.22
A175: 174 | B175: The Dominant Brand (Brandon) | C175: Desmond Jennings | D175: 4 | E175: TB - OF | F175: 261 | G175: 117/479 | H175: 64 | I175: 10 | J175: 36 | K175: 15 | L175: 0.244
A176: 175 | B176: The Soylent Knights (Colin) | C176: Danny Farquhar | D176: 4 | E176: Sea - RP | F176: 322 | G176: 71 | H176: 3 | I176: 1 | J176: 81 | K176: 2.66 | L176: 1.13
A177: 176 | B177: Woap (Mike) | C177: Adam Warren | D177: 1 | E177: NYY - RP | F177: 343 | G177: 78.2 | H177: 3 | I177: 3 | J177: 76 | K177: 2.97 | L177: 1.11
A178: 177 | B178: Numbats (Tom) | C178: Kendall Graveman | D178: 10 | E178: Oak - RP | F178: 598 | G178: 4.2 | H178: 0 | I178: 0 | J178: 4 | K178: 3.86 | L178: 0.86
A179: 178 | B179: TheDunnShow (Dave) | C179: Jesse Hahn | D179: 10 | E179: Oak - SP | F179: 353 | G179: 73.1 | H179: 7 | I179: 0 | J179: 70 | K179: 3.07 | L179: 1.21
A180: 179 | B180: TheDunnShow (Dave) | C180: Nick Castellanos | D180: 1 | E180: Det - 3B | F180: 532 | G180: 138/533 | H180: 50 | I180: 11 | J180: 66 | K180: 2 | L180: 0.259
A181: 180 | B181: Lightning (Mike Goodman) | C181: Jed Lowrie | D181: 2 | E181: Hou - SS | F181: 382 | G181: 125/502 | H181: 59 | I181: 6 | J181: 50 | K181: 0 | L181: 0.249
A182: 181 | B182: The Macon Whoopees (Rob) | C182: Tom Wilhelmsen | D182: 2 | E182: Sea - RP | F182: 308 | G182: 79.1 | H182: 3 | I182: 1 | J182: 72 | K182: 2.27 | L182: 1.05
A183: 182 | B183: The Dominant Brand (Brandon) | C183: Chad Qualls | D183: 7 | E183: Hou - RP | F183: 333 | G183: 51.1 | H183: 1 | I183: 19 | J183: 43 | K183: 3.33 | L183: 1.15
A184: 183 | B184: The Macon Whoopees (Rob) | C184: Lonnie Chisenhall | D184: 1 | E184: Cle - 1B,3B | F184: 263 | G184: 134/478 | H184: 62 | I184: 13 | J184: 59 | K184: 3 | L184: 0.28
A185: 184 | B185: TheDunnShow (Dave) | C185: Edward Mujica | D185: 2 | E185: Bos - RP | F185: 397 | G185: 60 | H185: 2 | I185: 8 | J185: 43 | K185: 3.9 | L185: 1.38
A186: 185 | B186: TheDunnShow (Dave) | C186: CC Sabathia | D186: 8 | E186: NYY - SP | F186: 960 | G186: 46 | H186: 3 | I186: 0 | J186: 48 | K186: 5.28 | L186: 1.48
A187: 186 | B187: TheDunnShow (Dave) | C187: Andrew Heaney | D187: 8 | E187: LAA - SP | F187: 979 | G187: 29.1 | H187: 0 | I187: 0 | J187: 20 | K187: 5.83 | L187: 1.33
A188: 187 | B188: TheDunnShow (Dave) | C188: Jarrod Dyson | D188: 6 | E188: KC - OF | F188: 419 | G188: 70/260 | H188: 33 | I188: 1 | J188: 24 | K188: 36 | L188: 0.269
A189: 188 | B189: Freebirds (Todd) | C189: Miguel González | D189: 1 | E189: Bal - SP | F189: 331 | G189: 159 | H189: 10 | I189: 0 | J189: 111 | K189: 3.23 | L189: 1.3
A190: 189 | B190: The Macon Whoopees (Rob) | C190: Mark Teixeira | D190: 2 | E190: NYY - 1B | F190: 225 | G190: 95/440 | H190: 56 | I190: 22 | J190: 62 | K190: 1 | L190: 0.216
A191: 190 | B191: The Macon Whoopees (Rob) | C191: Kurt Suzuki | D191: 1 | E191: Min - C | F191: 581 | G191: 130/452 | H191: 37 | I191: 3 | J191: 61 | K191: 0 | L191: 0.288
A192: 191 | B192: Woap (Mike) | C192: Jason Castro | D192: 1 | E192: Hou - C | F192: 511 | G192: 103/465 | H192: 43 | I192: 14 | J192: 56 | K192: 1 | L192: 0.222
A193: 192 | B193: Guzzlers (Rhonda) | C193: Tyler Flowers | D193: 1 | E193: CWS - C | F193: 876 | G193: 98/407 | H193: 42 | I193: 15 | J193: 50 | K193: 0 | L193: 0.241
A194: 193 | B194: Lightning (Mike Goodman) | C194: Dylan Bundy | D194: 1 | E194: Bal - RP | F194: 714 | G194: - | H194: - | I194: - | J194: - | K194: - | L194: -
A195: 194 | B195: TheDunnShow (Dave) | C195: Micah Johnson | D195: 1 | E195: CWS - 2B | F195: 1551 | G195: -/- | H195: - | I195: - | J195: - | K195: - | L195: -
A196: 195 | B196: Freebirds (Todd) | C196: Mike Avilés | D196: 1 | E196: Cle - 2B,3B,SS,OF | F196: 560 | G196: 85/344 | H196: 38 | I196: 5 | J196: 39 | K196: 14 | L196: 0.247
A197: 196 | B197: Booya's (Cathy) | C197: Zach Duke | D197: 1 | E197: CWS - RP | F197: 344 | G197: 58.2 | H197: 5 | I197: 0 | J197: 74 | K197: 2.45 | L197: 1.13
A198: 197 | B198: The Macon Whoopees (Rob) | C198: Alfredo Simón | D198: 10 | E198: Det - SP | F198: 291 | G198: 196.1 | H198: 15 | I198: 0 | J198: 127 | K198: 3.44 | L198: 1.21
A199: 198 | B199: Woap (Mike) | C199: Grant Balfour | D199: 1 | E199: TB - RP | F199: 450 | G199: 62.1 | H199: 2 | I199: 12 | J199: 57 | K199: 4.91 | L199: 1.44
A200: 199 | B200: Freebirds (Todd) | C200: C.J. Wilson | D200: 2 | E200: LAA - SP | F200: 584 | G200: 175.2 | H200: 13 | I200: 0 | J200: 151 | K200: 4.51 | L200: 1.45
... 76 more rows

Sheet Summary
A1: Owners | B1: Current Used Points | C1: Remaining Points | D1: Max Bidding Points | E1: Players Left to Draft | F1: C | G1: 1B | H1: 2B | I1: 3B | J1: SS | K1: OF | L1: DH | M1: SP | N1: RP | O1: Reserve
A2: Lightning (Mike Goodman) | B2: =used1 -> 152 | C2: ='2015 Pre-Draft Rosters'!D22 -> 108 | D2: ='2015 Pre-Draft Rosters'!D23 -> 108 | E2: ='2015 Pre-Draft Rosters'!D24 -> 1 | F2: =1-COUNT('2015 Pre-Draft Rosters'!D3) -> 1 | G2: =1-COUNT('2015 Pre-Draft Rosters'!D4) -> 0 | H2: =1-COUNT('2015 Pre-Draft Rosters'!D5) -> 0 | I2: =1-COUNT('2015 Pre-Draft Rosters'!D6) -> 0 | J2: =1-COUNT('2015 Pre-Draft Rosters'!D7) -> 0 | K2: =3-COUNT('2015 Pre-Draft Rosters'!D8:D10) -> 0 | L2: =1-COUNT('2015 Pre-Draft Rosters'!D11) -> 0 | M2: =5-COUNT('2015 Pre-Draft Rosters'!D12:D16) -> 0 | N2: =4-COUNT('2015 Pre-Draft Rosters'!D17:D20) -> 0 | O2: =7-COUNT('2015 Pre-Draft Rosters'!D27:D33) -> 0
A3: Evolution (Bruce) | B3: =used2 -> 253 | C3: ='2015 Pre-Draft Rosters'!H22 -> 7 | D3: ='2015 Pre-Draft Rosters'!H23 -> 4 | E3: ='2015 Pre-Draft Rosters'!H24 -> 4 | F3: =1-COUNT('2015 Pre-Draft Rosters'!H3) -> 0 | G3: =1-COUNT('2015 Pre-Draft Rosters'!H4) -> 0 | H3: =1-COUNT('2015 Pre-Draft Rosters'!H5) -> 0 | I3: =1-COUNT('2015 Pre-Draft Rosters'!H6) -> 0 | J3: =1-COUNT('2015 Pre-Draft Rosters'!H7) -> 0 | K3: =3-COUNT('2015 Pre-Draft Rosters'!H8:H10) -> 2 | L3: =1-COUNT('2015 Pre-Draft Rosters'!H11) -> 0 | M3: =5-COUNT('2015 Pre-Draft Rosters'!H12:H16) -> 0 | N3: =4-COUNT('2015 Pre-Draft Rosters'!H17:H20) -> 2 | O3: =7-COUNT('2015 Pre-Draft Rosters'!H27:H33) -> 2
A4: The Soylent Knights (Colin) | B4: =used3 -> 196 | C4: ='2015 Pre-Draft Rosters'!L22 -> 64 | D4: ='2015 Pre-Draft Rosters'!L23 -> 64 | E4: ='2015 Pre-Draft Rosters'!L24 -> 0 | F4: =1-COUNT('2015 Pre-Draft Rosters'!L3) -> 0 | G4: =1-COUNT('2015 Pre-Draft Rosters'!L4) -> 0 | H4: =1-COUNT('2015 Pre-Draft Rosters'!L5) -> 0 | I4: =1-COUNT('2015 Pre-Draft Rosters'!L6) -> 0 | J4: =1-COUNT('2015 Pre-Draft Rosters'!L7) -> 0 | K4: =3-COUNT('2015 Pre-Draft Rosters'!L8:L10) -> 0 | L4: =1-COUNT('2015 Pre-Draft Rosters'!L11) -> 0 | M4: =5-COUNT('2015 Pre-Draft Rosters'!L12:L16) -> 0 | N4: =4-COUNT('2015 Pre-Draft Rosters'!L17:L20) -> 0 | O4: =7-COUNT('2015 Pre-Draft Rosters'!L27:L33) -> 1
A5: Woap (Mike) | B5: =used4 -> 174 | C5: ='2015 Pre-Draft Rosters'!P22 -> 86 | D5: ='2015 Pre-Draft Rosters'!P23 -> 86 | E5: ='2015 Pre-Draft Rosters'!P24 -> 1 | F5: =1-COUNT('2015 Pre-Draft Rosters'!P3) -> 0 | G5: =1-COUNT('2015 Pre-Draft Rosters'!P4) -> 0 | H5: =1-COUNT('2015 Pre-Draft Rosters'!P5) -> 0 | I5: =1-COUNT('2015 Pre-Draft Rosters'!P6) -> 1 | J5: =1-COUNT('2015 Pre-Draft Rosters'!P7) -> 0 | K5: =3-COUNT('2015 Pre-Draft Rosters'!P8:P10) -> 0 | L5: =1-COUNT('2015 Pre-Draft Rosters'!P11) -> 0 | M5: =5-COUNT('2015 Pre-Draft Rosters'!P12:P16) -> 0 | N5: =4-COUNT('2015 Pre-Draft Rosters'!P17:P20) -> 0 | O5: =7-COUNT('2015 Pre-Draft Rosters'!P27:P33) -> 2
A6: The Dominant Brand (Brandon) | B6: =used5 -> 164 | C6: ='2015 Pre-Draft Rosters'!T22 -> 96 | D6: ='2015 Pre-Draft Rosters'!T23 -> 96 | E6: ='2015 Pre-Draft Rosters'!T24 -> 1 | F6: =1-COUNT('2015 Pre-Draft Rosters'!T3) -> 1 | G6: =1-COUNT('2015 Pre-Draft Rosters'!T4) -> 0 | H6: =1-COUNT('2015 Pre-Draft Rosters'!T5) -> 0 | I6: =1-COUNT('2015 Pre-Draft Rosters'!T6) -> 0 | J6: =1-COUNT('2015 Pre-Draft Rosters'!T7) -> 0 | K6: =3-COUNT('2015 Pre-Draft Rosters'!T8:T10) -> 0 | L6: =1-COUNT('2015 Pre-Draft Rosters'!T11) -> 0 | M6: =5-COUNT('2015 Pre-Draft Rosters'!T12:T16) -> 0 | N6: =4-COUNT('2015 Pre-Draft Rosters'!T17:T20) -> 0 | O6: =7-COUNT('2015 Pre-Draft Rosters'!T27:T33) -> 0
A7: Guzzlers (Rhonda) | B7: =used6 -> 214 | C7: ='2015 Pre-Draft Rosters'!X22 -> 46 | D7: ='2015 Pre-Draft Rosters'!X23 -> 46 | E7: ='2015 Pre-Draft Rosters'!X24 -> 0 | F7: =1-COUNT('2015 Pre-Draft Rosters'!X3) -> 0 | G7: =1-COUNT('2015 Pre-Draft Rosters'!X4) -> 0 | H7: =1-COUNT('2015 Pre-Draft Rosters'!X5) -> 0 | I7: =1-COUNT('2015 Pre-Draft Rosters'!X6) -> 0 | J7: =1-COUNT('2015 Pre-Draft Rosters'!X7) -> 0 | K7: =3-COUNT('2015 Pre-Draft Rosters'!X8:X10) -> 0 | L7: =1-COUNT('2015 Pre-Draft Rosters'!X11) -> 0 | M7: =5-COUNT('2015 Pre-Draft Rosters'!X12:X16) -> 0 | N7: =4-COUNT('2015 Pre-Draft Rosters'!X17:X20) -> 0 | O7: =7-COUNT('2015 Pre-Draft Rosters'!X27:X33) -> 2
A8: The Macon Whoopees (Rob) | B8: =used7 -> 206 | C8: ='2015 Pre-Draft Rosters'!AB22 -> 54 | D8: ='2015 Pre-Draft Rosters'!AB23 -> 54 | E8: ='2015 Pre-Draft Rosters'!AB24 -> 0 | F8: =1-COUNT('2015 Pre-Draft Rosters'!AB3) -> 0 | G8: =1-COUNT('2015 Pre-Draft Rosters'!AB4) -> 0 | H8: =1-COUNT('2015 Pre-Draft Rosters'!AB5) -> 0 | I8: =1-COUNT('2015 Pre-Draft Rosters'!AB6) -> 0 | J8: =1-COUNT('2015 Pre-Draft Rosters'!AB7) -> 0 | K8: =3-COUNT('2015 Pre-Draft Rosters'!AB8:AB10) -> 0 | L8: =1-COUNT('2015 Pre-Draft Rosters'!AB11) -> 0 | M8: =5-COUNT('2015 Pre-Draft Rosters'!AB12:AB16) -> 0 | N8: =4-COUNT('2015 Pre-Draft Rosters'!AB17:AB20) -> 0 | O8: =7-COUNT('2015 Pre-Draft Rosters'!AB27:AB33) -> 0
A9: Booya's (Cathy) | B9: =used8 -> 208 | C9: ='2015 Pre-Draft Rosters'!AF22 -> 52 | D9: ='2015 Pre-Draft Rosters'!AF23 -> 52 | E9: ='2015 Pre-Draft Rosters'!AF24 -> 1 | F9: =1-COUNT('2015 Pre-Draft Rosters'!AF3) -> 0 | G9: =1-COUNT('2015 Pre-Draft Rosters'!AF4) -> 0 | H9: =1-COUNT('2015 Pre-Draft Rosters'!AF5) -> 0 | I9: =1-COUNT('2015 Pre-Draft Rosters'!AF6) -> 0 | J9: =1-COUNT('2015 Pre-Draft Rosters'!AF7) -> 0 | K9: =3-COUNT('2015 Pre-Draft Rosters'!AF8:AF10) -> 1 | L9: =1-COUNT('2015 Pre-Draft Rosters'!AF11) -> 0 | M9: =5-COUNT('2015 Pre-Draft Rosters'!AF12:AF16) -> 0 | N9: =4-COUNT('2015 Pre-Draft Rosters'!AF17:AF20) -> 0 | O9: =7-COUNT('2015 Pre-Draft Rosters'!AF27:AF33) -> 1
A10: Freebirds (Todd) | B10: =used9 -> 191 | C10: ='2015 Pre-Draft Rosters'!AJ22 -> 69 | D10: ='2015 Pre-Draft Rosters'!AJ23 -> 69 | E10: ='2015 Pre-Draft Rosters'!AJ24 -> 0 | F10: =1-COUNT('2015 Pre-Draft Rosters'!AJ3) -> 0 | G10: =1-COUNT('2015 Pre-Draft Rosters'!AJ4) -> 0 | H10: =1-COUNT('2015 Pre-Draft Rosters'!AJ5) -> 0 | I10: =1-COUNT('2015 Pre-Draft Rosters'!AJ6) -> 0 | J10: =1-COUNT('2015 Pre-Draft Rosters'!AJ7) -> 0 | K10: =3-COUNT('2015 Pre-Draft Rosters'!AJ8:AJ10) -> 0 | L10: =1-COUNT('2015 Pre-Draft Rosters'!AJ11) -> 0 | M10: =5-COUNT('2015 Pre-Draft Rosters'!AJ12:AJ16) -> 0 | N10: =4-COUNT('2015 Pre-Draft Rosters'!AJ17:AJ20) -> 0 | O10: =7-COUNT('2015 Pre-Draft Rosters'!AJ27:AJ33) -> 0
A11: Numbats (Tom) | B11: =used10 -> 138 | C11: ='2015 Pre-Draft Rosters'!AN22 -> 122 | D11: ='2015 Pre-Draft Rosters'!AN23 -> 122 | E11: ='2015 Pre-Draft Rosters'!AN24 -> 0 | F11: =1-COUNT('2015 Pre-Draft Rosters'!AN3) -> 0 | G11: =1-COUNT('2015 Pre-Draft Rosters'!AN4) -> 0 | H11: =1-COUNT('2015 Pre-Draft Rosters'!AN5) -> 0 | I11: =1-COUNT('2015 Pre-Draft Rosters'!AN6) -> 0 | J11: =1-COUNT('2015 Pre-Draft Rosters'!AN7) -> 0 | K11: =3-COUNT('2015 Pre-Draft Rosters'!AN8:AN10) -> 0 | L11: =1-COUNT('2015 Pre-Draft Rosters'!AN11) -> 0 | M11: =5-COUNT('2015 Pre-Draft Rosters'!AN12:AN16) -> 0 | N11: =4-COUNT('2015 Pre-Draft Rosters'!AN17:AN20) -> 0 | O11: =7-COUNT('2015 Pre-Draft Rosters'!AN27:AN33) -> 1
A12: TheDunnShow (Dave) | B12: =used11 -> 144 | C12: ='2015 Pre-Draft Rosters'!AR22 -> 116 | D12: ='2015 Pre-Draft Rosters'!AR23 -> 116 | E12: ='2015 Pre-Draft Rosters'!AR24 -> 1 | F12: =1-COUNT('2015 Pre-Draft Rosters'!AR3) -> 0 | G12: =1-COUNT('2015 Pre-Draft Rosters'!AR4) -> 0 | H12: =1-COUNT('2015 Pre-Draft Rosters'!AR5) -> 0 | I12: =1-COUNT('2015 Pre-Draft Rosters'!AR6) -> 0 | J12: =1-COUNT('2015 Pre-Draft Rosters'!AR7) -> 1 | K12: =3-COUNT('2015 Pre-Draft Rosters'!AR8:AR10) -> 0 | L12: =1-COUNT('2015 Pre-Draft Rosters'!AR11) -> 0 | M12: =5-COUNT('2015 Pre-Draft Rosters'!AR12:AR16) -> 0 | N12: =4-COUNT('2015 Pre-Draft Rosters'!AR17:AR20) -> 0 | O12: =7-COUNT('2015 Pre-Draft Rosters'!AR27:AR33) -> 0
E13: =SUM(E2:E12) -> 9 | F13: =SUM(F2:F12) -> 2 | G13: 0 | H13: 0 | I13: 1 | J13: 1 | K13: 3 | L13: 0 | M13: 0 | N13: 2 | O13: 9

Sheet Catchers
A1: Player | B1: Team | C1: Rank | D1: H/AB | E1: R | F1: HR | G1: RBI | H1: SB | I1: Avg.
A10: Chris Iannetta | B10: LAA - C | C10: 850 | D10: 77/306 | E10: 41 | F10: 7 | G10: 43 | H10: 3 | I10: 0.252
A12: Álex Ávila | B12: Det - C | C12: 1000 | D12: 85/390 | E12: 44 | F12: 11 | G12: 47 | H12: 0 | I12: 0.218
A14: René Rivera | B14: TB - C | C14: 1085 | D14: 74/294 | E14: 27 | F14: 11 | G14: 44 | H14: 0 | I14: 0.252
A15: J.P. Arencibia | B15: Bal - C,1B | C15: 1137 | D15: 36/203 | E15: 20 | F15: 10 | G15: 35 | H15: 0 | I15: 0.177
A16: Josmil Pinto | B16: Min - C | C16: 1165 | D16: 37/169 | E16: 25 | F16: 7 | G16: 18 | H16: 0 | I16: 0.219
A17: Carlos Corporán | B17: Tex - C | C17: 1170 | D17: 40/170 | E17: 22 | F17: 6 | G17: 19 | H17: 0 | I17: 0.235
A18: Hank Conger | B18: Hou - C | C18: 1175 | D18: 51/231 | E18: 24 | F18: 4 | G18: 25 | H18: 0 | I18: 0.221
A19: Ryan Hanigan | B19: Bos - C | C19: 1188 | D19: 49/225 | E19: 18 | F19: 5 | G19: 34 | H19: 1 | I19: 0.218
A20: Caleb Joseph | B20: Bal - C | C20: 1198 | D20: 51/246 | E20: 22 | F20: 9 | G20: 28 | H20: 0 | I20: 0.207
A21: Erik Kratz | B21: KC - C | C21: 1213 | D21: 24/110 | E21: 12 | F21: 5 | G21: 13 | H21: 0 | I21: 0.218
A22: Geovany Soto | B22: CWS - C | C22: 1229 | D22: 20/80 | E22: 8 | F22: 1 | G22: 11 | H22: 0 | I22: 0.25
A23: Christian Vázquez | B23: Bos - C | C23: 1253 | D23: 42/175 | E23: 15 | F23: 1 | G23: 20 | H23: 0 | I23: 0.24
A24: Bryan Holaday | B24: Det - C | C24: 1276 | D24: 36/156 | E24: 14 | F24: 0 | G24: 15 | H24: 1 | I24: 0.231
A25: Josh Phegley | B25: Oak - C | C25: 1287 | D25: 8/37 | E25: 4 | F25: 3 | G25: 7 | H25: 0 | I25: 0.216
A26: George Kottaras | B26: CWS - C | C26: 1292 | D26: 7/30 | E26: 4 | F26: 3 | G26: 5 | H26: 0 | I26: 0.233
A27: John Ryan Murphy | B27: NYY - C | C27: 1293 | D27: 23/81 | E27: 7 | F27: 1 | G27: 9 | H27: 0 | I27: 0.284
A28: Chris Giménez | B28: Tex - C,1B | C28: 1300 | D28: 28/116 | E28: 13 | F28: 0 | G28: 11 | H28: 0 | I28: 0.241
A29: Roberto Pérez | B29: Cle - C | C29: 1314 | D29: 23/85 | E29: 10 | F29: 1 | G29: 4 | H29: 0 | I29: 0.271
A30: Eric Fryer | B30: Min - C | C30: 1315 | D30: 16/75 | E30: 11 | F30: 1 | G30: 5 | H30: 1 | I30: 0.213
A31: Josh Thole | B31: Tor - C | C31: 1326 | D31: 33/133 | E31: 11 | F31: 0 | G31: 7 | H31: 0 | I31: 0.248
A32: Adrián Nieto | B32: CWS - C | C32: 1334 | D32: 25/106 | E32: 8 | F32: 2 | G32: 7 | H32: 0 | I32: 0.236
A33: Drew Butera | B33: LAA - C | C33: 1337 | D33: 32/170 | E33: 16 | F33: 3 | G33: 14 | H33: 0 | I33: 0.188
A34: Tomás Telís | B34: Tex - C | C34: 1342 | D34: 17/68 | E34: 7 | F34: 0 | G34: 8 | H34: 0 | I34: 0.25
A35: Steve Clevenger | B35: Bal - C | C35: 1360 | D35: 20/89 | E35: 8 | F35: 0 | G35: 8 | H35: 0 | I35: 0.225
A36: Max Stassi | B36: Hou - C | C36: 1371 | D36: 7/20 | E36: 2 | F36: 0 | G36: 4 | H36: 0 | I36: 0.35
A37: Austin Romine | B37: NYY - C | C37: 1392 | D37: 3/13 | E37: 2 | F37: 0 | G37: 1 | H37: 0 | I37: 0.231
A38: Humberto Quintero | B38: Bos - C | C38: 1403 | D38: 0/2 | E38: 0 | F38: 0 | G38: 1 | H38: 0 | I38: 0
A39: Jackson Williams | B39: LAA - C | C39: 1408 | D39: 3/14 | E39: 1 | F39: 1 | G39: 3 | H39: 0 | I39: 0.214
A40: Yorvit Torrealba | B40: LAA - C | C40: 1415 | D40: -/- | E40: - | F40: - | G40: - | H40: - | I40: -
A41: James McCann | B41: Det - C | C41: 1419 | D41: 3/12 | E41: 2 | F41: 0 | G41: 0 | H41: 1 | I41: 0.25
A42: Kelly Shoppach | B42: Cle - C | C42: 1422 | D42: -/- | E42: - | F42: - | G42: - | H42: - | I42: -
A43: Jesús Sucre | B43: Sea - C | C43: 1426 | D43: 13/61 | E43: 4 | F43: 0 | G43: 5 | H43: 0 | I43: 0.213
A44: Rob Brantly | B44: CWS - C | C44: 1446 | D44: -/- | E44: - | F44: - | G44: - | H44: - | I44: -
A45: Adam Moore | B45: Cle - C | C45: 1449 | D45: 2/10 | E45: 1 | F45: 0 | G45: 1 | H45: 0 | I45: 0.2
A46: Curt Casali | B46: TB - C | C46: 1450 | D46: 12/72 | E46: 10 | F46: 0 | G46: 3 | H46: 0 | I46: 0.167
A47: Johnny Monell | B47: Bal - C | C47: 1470 | D47: -/- | E47: - | F47: - | G47: - | H47: - | I47: -
A48: John Hester | B48: LAA - C | C48: 1471 | D48: -/- | E48: - | F48: - | G48: - | H48: - | I48: -
A49: Jorge Alfaro | B49: Tex - C | C49: 1493 | D49: -/- | E49: - | F49: - | G49: - | H49: - | I49: -
A50: Francisco Peña | B50: KC - C | C50: 1514 | D50: 0/0 | E50: 0 | F50: 0 | G50: 0 | H50: 0 | I50: -
A51: Gary Sánchez | B51: NYY - C | C51: 1524 | D51: -/- | E51: - | F51: - | G51: - | H51: - | I51: -
A53: Jon Denney | B53: Bos - C | C53: 1564 | D53: -/- | E53: - | F53: - | G53: - | H53: - | I53: -
A54: Bobby Wilson | B54: TB - C | C54: 1572 | D54: 1/4 | E54: 0 | F54: 0 | G54: 0 | H54: 0 | I54: 0.25
A55: Bryan Anderson | B55: Oak - C | C55: 1599 | D55: 0/1 | E55: 0 | F55: 0 | G55: 0 | H55: 0 | I55: 0
A56: John Baker | B56: Sea - C | C56: 1610 | D56: 35/182 | E56: 9 | F56: 0 | G56: 15 | H56: 0 | I56: 0.192
A57: Brett Hayes | B57: Cle - C | C57: 1616 | D57: 7/52 | E57: 3 | F57: 1 | G57: 2 | H57: 0 | I57: 0.135
A58: José Molina | B58: TB - C | C58: 1630 | D58: 40/225 | E58: 4 | F58: 0 | G58: 10 | H58: 3 | I58: 0.178

Sheet 1st Base
A1: Player | B1: Team | C1: Rank | D1: H/AB | E1: R | F1: HR | G1: RBI | H1: SB | I1: Avg.
A19: Adam Dunn | B19: Oak - 1B,OF | C19: 346 | D19: 94/429 | E19: 49 | F19: 22 | G19: 64 | H19: 1 | I19: 0.219
A22: Daniel Nava | B22: Bos - 1B,OF | C22: 457 | D22: 98/363 | E22: 41 | F22: 4 | G22: 37 | H22: 4 | I22: 0.27
A23: Juan Francisco | B23: TB - 1B,3B | C23: 787 | D23: 63/287 | E23: 40 | F23: 16 | G23: 43 | H23: 0 | I23: 0.22
A28: Justin Smoak | B28: Tor - 1B | C28: 1113 | D28: 50/248 | E28: 28 | F28: 7 | G28: 30 | H28: 0 | I28: 0.202
A29: Chris Parmelee | B29: Bal - 1B,OF | C29: 1115 | D29: 64/250 | E29: 27 | F29: 7 | G29: 28 | H29: 0 | I29: 0.256
A30: Mitch Moreland | B30: Tex - 1B | C30: 1122 | D30: 41/167 | E30: 18 | F30: 2 | G30: 23 | H30: 0 | I30: 0.246
A31: Danny Valencia | B31: Tor - 1B,3B | C31: 1126 | D31: 68/264 | E31: 20 | F31: 4 | G31: 30 | H31: 1 | I31: 0.258
A32: J.P. Arencibia | B32: Bal - C,1B | C32: 1137 | D32: 36/203 | E32: 20 | F32: 10 | G32: 35 | H32: 0 | I32: 0.177
A33: Chris Colabello | B33: Tor - 1B,OF | C33: 1151 | D33: 47/205 | E33: 17 | F33: 6 | G33: 39 | H33: 0 | I33: 0.229
A34: Adam Rosales | B34: Tex - 1B,2B,3B | C34: 1161 | D34: 43/164 | E34: 20 | F34: 4 | G34: 19 | H34: 4 | I34: 0.262
A35: Willie Bloomquist | B35: Sea - 1B,2B,3B,SS | C35: 1193 | D35: 37/133 | E35: 15 | F35: 1 | G35: 14 | H35: 1 | I35: 0.278
A36: Kyle Blanks | B36: Tex - 1B | C36: 1199 | D36: 17/55 | E36: 10 | F36: 2 | G36: 7 | H36: 0 | I36: 0.309
A37: Nate Freiman | B37: Oak - 1B | C37: 1204 | D37: 19/87 | E37: 12 | F37: 5 | G37: 15 | H37: 0 | I37: 0.218
A39: Marc Krauss | B39: LAA - 1B,OF | C39: 1232 | D39: 36/186 | E39: 16 | F39: 6 | G39: 21 | H39: 0 | I39: 0.194
A40: Efrén Navarro | B40: LAA - 1B,OF | C40: 1245 | D40: 39/159 | E40: 17 | F40: 1 | G40: 14 | H40: 1 | I40: 0.245
A41: Jesús Guzmán | B41: Hou - 1B,OF | C41: 1277 | D41: 31/165 | E41: 10 | F41: 2 | G41: 9 | H41: 3 | I41: 0.188
A42: Brett Wallace | B42: Bal - 1B,3B | C42: 1290 | D42: -/- | E42: - | F42: - | G42: - | H42: - | I42: -
A43: Chirs Giménez | B43: Tex - C,1B | C43: 1300 | D43: 28/116 | E43: 13 | F43: 0 | G43: 11 | H43: 0 | I43: 0.241
A44: Travis Hafner | B44: NYY - 1B | C44: 1313 | D44: -/- | E44: - | F44: - | G44: - | H44: - | I44: -
A45: Dan Johnson | B45: Hou - 1B | C45: 1331 | D45: 8/38 | E45: 8 | F45: 1 | G45: 7 | H45: 0 | I45: 0.211
A46: Daric Barton | B46: Tor - 1B | C46: 1353 | D46: 9/57 | E46: 7 | F46: 0 | G46: 5 | H46: 0 | I46: 0.158
A47: Carlos Peña | B47: Tex - 1B | C47: 1356 | D47: 8/59 | E47: 4 | F47: 1 | G47: 2 | H47: 1 | I47: 0.136
A48: Brad Snyder | B48: Tex - 1B | C48: 1404 | D48: 5/30 | E48: 3 | F48: 2 | G48: 3 | H48: 0 | I48: 0.167
A49: Kevin Youkilis | B49: NYY - 1B,3B | C49: 1412 | D49: -/- | E49: - | F49: - | G49: - | H49: - | I49: -
A50: Chad Tracy | B50: LAA - 1B,3B | C50: 1434 | D50: -/- | E50: - | F50: - | G50: - | H50: - | I50: -
A51: Ryan Lavarnway | B51: Bal - 1B | C51: 1442 | D51: 0/10 | E51: 0 | F51: 0 | G51: 0 | H51: 0 | I51: 0
A52: Christian Walker | B52: Bal - 1B | C52: 1458 | D52: 3/18 | E52: 1 | F52: 1 | G52: 1 | H52: 0 | I52: 0.167
A53: Greg Bird | B53: NYY - 1B | C53: 1477 | D53: -/- | E53: - | F53: - | G53: - | H53: - | I53: -
A54: Max Muncy | B54: Oak - 1B | C54: 1502 | D54: -/- | E54: - | F54: - | G54: - | H54: - | I54: -
A55: Matt Olson | B55: Oak - 1B | C55: 1508 | D55: -/- | E55: - | F55: - | G55: - | H55: - | I55: -
A56: David Cooper | B56: Cle - 1B | C56: 1539 | D56: -/- | E56: - | F56: - | G56: - | H56: - | I56: -
A57: Ji-Man Choi | B57: Sea - 1B | C57: 1550 | D57: -/- | E57: - | F57: - | G57: - | H57: - | I57: -
A58: Casey Gillaspie | B58: TB - 1B | C58: 1563 | D58: -/- | E58: - | F58: - | G58: - | H58: - | I58: -
A59: Matt Hague | B59: Tor - 1B | C59: 1592 | D59: 0/2 | E59: 0 | F59: 0 | G59: 0 | H59: 0 | I59: 0
A60: Jesús Aguilar | B60: Cle - 1B | C60: 1617 | D60: 4/33 | E60: 2 | F60: 0 | G60: 3 | H60: 0 | I60: 0.121
A61: Andy Wilkins | B61: CWS - 1B | C61: 1624 | D61: 6/43 | E61: 2 | F61: 0 | G61: 2 | H61: 0 | I61: 0.14

Sheet 2nd Base
A1: Player | B1: Team | C1: Rank | D1: H/AB | E1: R | F1: HR | G1: RBI | H1: SB | I1: Avg.
A15: Josh Rutledge | B15: LAA - 2B,3B,SS | C15: 903 | D15: 83/309 | E15: 44 | F15: 4 | G15: 33 | H15: 2 | I15: 0.269
A19: Marwin González | B19: Hou - 2B,3B,SS | C19: 1087 | D19: 79/285 | E19: 33 | F19: 6 | G19: 23 | H19: 2 | I19: 0.277
A20: Eric Sogard | B20: Oak - 2B,SS | C20: 1089 | D20: 65/291 | E20: 38 | F20: 1 | G20: 22 | H20: 11 | I20: 0.223
A22: Ryan Flaherty | B22: Bal - 2B,3B,SS | C22: 1114 | D22: 62/281 | E22: 33 | F22: 7 | G22: 32 | H22: 1 | I22: 0.221
A24: José Ramírez | B24: Cle - 2B,SS | C24: 1142 | D24: 62/237 | E24: 27 | F24: 2 | G24: 17 | H24: 10 | I24: 0.262
A25: Logan Forsythe | B25: TB - 2B | C25: 1145 | D25: 67/301 | E25: 32 | F25: 6 | G25: 26 | H25: 2 | I25: 0.223
A26: Munenori Kawasaki | B26: Tor - 2B,3B | C26: 1156 | D26: 62/240 | E26: 31 | F26: 0 | G26: 17 | H26: 1 | I26: 0.258
A27: Adam Rosales | B27: Tex - 1B,2B,3B | C27: 1161 | D27: 43/164 | E27: 20 | F27: 4 | G27: 19 | H27: 4 | I27: 0.262
A28: Andrew Romine | B28: Det - 2B,SS | C28: 1164 | D28: 57/251 | E28: 30 | F28: 2 | G28: 12 | H28: 12 | I28: 0.227
A29: Ed Lucas | B29: Tex - 2B,SS | C29: 1190 | D29: 45/179 | E29: 19 | F29: 1 | G29: 9 | H29: 1 | I29: 0.251
A30: Ramón Santiago | B30: Tor - 2B,3B,SS | C30: 1191 | D30: 44/179 | E30: 20 | F30: 2 | G30: 17 | H30: 2 | I30: 0.246
A31: Willie Bloomquist | B31: Sea - 1B,2B,3B,SS | C31: 1193 | D31: 37/133 | E31: 15 | F31: 1 | G31: 14 | H31: 1 | I31: 0.278
A32: Steve Tolleson | B32: Tor - 2B,3B | C32: 1194 | D32: 43/170 | E32: 21 | F32: 3 | G32: 16 | H32: 3 | I32: 0.253
A33: Grant Green | B33: LAA - 2B,OF | C33: 1244 | D33: 27/99 | E33: 7 | F33: 1 | G33: 11 | H33: 1 | I33: 0.273
A34: Christian Colón | B34: KC - 2B | C34: 1281 | D34: 15/45 | E34: 8 | F34: 0 | G34: 6 | H34: 2 | I34: 0.333
A35: Maicer Izturis | B35: Tor - 2B | C35: 1286 | D35: 10-35 | E35: 3 | F35: 0 | G35: 1 | H35: 1 | I35: 0.286
A36: Leury García | B36: CWS - 2B,3B,OF | C36: 1298 | D36: 24/145 | E36: 13 | F36: 1 | G36: 6 | H36: 11 | I36: 0.166
A37: Jemile Weeks | B37: Bos - 2B | C37: 1312 | D37: 11/37 | E37: 8 | F37: 0 | G37: 3 | H37: 2 | I37: 0.297
A38: Josh Wilson | B38: Det - 2B | C38: 1318 | D38: 16/67 | E38: 7 | F38: 0 | G38: 8 | H38: 1 | I38: 0.239
A39: Chris Getz | B39: Tor - 2B | C39: 1319 | D39: 4/25 | E39: 1 | F39: 0 | G39: 0 | H39: 2 | I39: 0.16
A40: Johnny Giavotella | B40: LAA - 2B | C40: 1328 | D40: 8/37 | E40: 8 | F40: 1 | G40: 5 | H40: 0 | I40: 0.216
A41: José Pirela | B41: NYY - 2B | C41: 1345 | D41: 8/24 | E41: 6 | F41: 0 | G41: 3 | H41: 0 | I41: 0.333
A42: Miguel Tejada | B42: KC - 2B,3B | C42: 1349 | D42: -/- | E42: - | F42: - | G42: - | H42: - | I42: -
A43: Ryan Goins | B43: Tor - 2B,SS | C43: 1352 | D43: 34/181 | E43: 14 | F43: 1 | G43: 15 | H43: 0 | I43: 0.188
A44: Cole Figueroa | B44: NYY - 2B | C44: 1366 | D44: 10/43 | E44: 6 | F44: 0 | G44: 6 | H44: 0 | I44: 0.233
A45: Carlos Sánchez | B45: CWS - 2B | C45: 1367 | D45: 25/100 | E45: 6 | F45: 0 | G45: 5 | H45: 1 | I45: 0.25
A46: Jayson Nix | B46: KC - 2B,3B | C46: 1389 | D46: 10/83 | E46: 2 | F46: 1 | G46: 4 | H46: 1 | I46: 0.12
A47: David Adams | B47: Bal - 2B,3B | C47: 1439 | D47: -/- | E47: - | F47: - | G47: - | H47: - | I47: -
A48: César Izturis | B48: Hou - 2B,SS | C48: 1463 | D48: -/- | E48: - | F48: - | G48: - | H48: - | I48: -
A49: Brendan Ryan | B49: NYY - 2B,SS | C49: 1472 | D49: 19/114 | E49: 5 | F49: 0 | G49: 8 | H49: 0 | I49: 0.167
A50: Eddie Rosario | B50: Min - 2B | C50: 1492 | D50: -/- | E50: - | F50: - | G50: - | H50: - | I50: -
A51: Delino DeShields | B51: Tex - 2B | C51: 1515 | D51: -/- | E51: - | F51: - | G51: - | H51: - | I51: -
A55: Ryan Jackson | B55: KC - 2B,SS | C55: 1582 | D55: -/- | E55: - | F55: - | G55: - | H55: - | I55: -
A56: Brent Lillibridge | B56: Tex - 2B,3B | C56: 1604 | D56: -/- | E56: - | F56: - | G56: - | H56: - | I56: -

Sheet 3rd Base
A1: Player | B1: Team | C1: Rank | D1: H/AB | E1: R | F1: HR | G1: RBI | H1: SB | I1: Avg.
A12: David Freese | B12: LAA - 3B | C12: 390 | D12: 120/462 | E12: 53 | F12: 10 | G12: 55 | H12: 1 | I12: 0.26
A18: Juan Francisco | B18: TB - 1B,3B | C18: 787 | D18: 63/287 | E18: 40 | F18: 16 | G18: 43 | H18: 0 | I18: 0.22
A21: Josh Rutledge | B21: LAA - 2B,3B,SS | C21: 903 | D21: 83/309 | E21: 44 | F21: 4 | G21: 33 | H21: 2 | I21: 0.269
A22: Eduardo Núñez | B22: Min - 3B,SS,OF | C22: 1076 | D22: 51/204 | E22: 26 | F22: 4 | G22: 24 | H22: 9 | I22: 0.25
A24: Marwin González | B24: Hou - 2B,3B,SS | C24: 1087 | D24: 79/285 | E24: 33 | F24: 6 | G24: 23 | H24: 2 | I24: 0.277
A25: Ryan Flaherty | B25: Bal - 2B,3B,SS | C25: 1114 | D25: 62/281 | E25: 33 | F25: 7 | G25: 32 | H25: 1 | I25: 0.221
A26: Danny Valencia | B26: Tor - 1B,3B | C26: 1126 | D26: 68/264 | E26: 20 | F26: 4 | G26: 30 | H26: 1 | I26: 0.258
A28: Munenori Kawasaki | B28: Tor - 2B,3B | C28: 1156 | D28: 62/240 | E28: 31 | F28: 0 | G28: 17 | H28: 1 | I28: 0.258
A29: Adam Rosales | B29: Tex - 1B,2B,3B | C29: 1161 | D29: 43/164 | E29: 20 | F29: 4 | G29: 19 | H29: 4 | I29: 0.262
A30: Ramón Santiago | B30: Tor - 2B,3B,SS | C30: 1191 | D30: 44/179 | E30: 20 | F30: 2 | G30: 17 | H30: 2 | I30: 0.246
A31: Willie Bloomquist | B31: Sea - 1B,2B,3B,SS | C31: 1193 | D31: 37/133 | E31: 15 | F31: 1 | G31: 14 | H31: 1 | I31: 0.278
A32: Steve Tolleson | B32: Tor - 2B,3B | C32: 1194 | D32: 43/170 | E32: 21 | F32: 3 | G32: 16 | H32: 3 | I32: 0.253
A33: Jimmy Paredes | B33: Bal - 3B | C33: 1223 | D33: 18/63 | E33: 12 | F33: 2 | G33: 8 | H33: 4 | I33: 0.286
A34: Kevin Kouzmanoff | B34: Tex - 3B | C34: 1241 | D34: 17/47 | E34: 8 | F34: 2 | G34: 10 | H34: 0 | I34: 0.362
A35: Gregorio Petit | B35: Hou - 3B,SS | C35: 1243 | D35: 27/97 | E35: 14 | F35: 2 | G35: 9 | H35: 0 | I35: 0.278
A36: José Iglesias | B36: Det - 3B,SS | C36: 1271 | D36: -/- | E36: - | F36: - | G36: - | H36: - | I36: -
A37: Ryan Wheeler | B37: LAA - 3B | C37: 1288 | D37: 13/56 | E37: 6 | F37: 2 | G37: 13 | H37: 0 | I37: 0.232
A38: Brett Wallace | B38: Bal - 1B,3B | C38: 1290 | D38: -/- | E38: - | F38: - | G38: - | H38: - | I38: -
A39: Leury García | B39: CWS - 2B,3B,OF | C39: 1298 | D39: 24/145 | E39: 13 | F39: 1 | G39: 6 | H39: 11 | I39: 0.166
A40: Jeff Keppinger | B40: CWS - 3B | C40: 1305 | D40: -/- | E40: - | F40: - | G40: - | H40: - | I40: -
A41: Matt Tuiasosopo | B41: Tor - 3B,OF | C41: 1316 | D41: -/- | E41: - | F41: - | G41: - | H41: - | I41: -
A42: Garin Cecchini | B42: Bos - 3B | C42: 1346 | D42: 8/31 | E42: 6 | F42: 1 | G42: 4 | H42: 0 | I42: 0.258
A43: Miguel Tejada | B43: KC - 2B,3B | C43: 1349 | D43: -/- | E43: - | F43: - | G43: - | H43: - | I43: -
A44: Carlos Rivero | B44: Sea - 3B | C44: 1365 | D44: 4/7 | E44: 1 | F44: 1 | G44: 3 | H44: 0 | I44: 0.571
A45: Jeff Bianchi | B45: Bos - 3B,SS | C45: 1372 | D45: 12/70 | E45: 4 | F45: 0 | G45: 6 | H45: 0 | I45: 0.171
A46: Zelous Wheeler | B46: NYY - 3B,OF | C46: 1374 | D46: 11/57 | E46: 6 | F46: 2 | G46: 5 | H46: 0 | I46: 0.193
A47: Jayson Nix | B47: KC - 2B,3B | C47: 1389 | D47: 10/83 | E47: 2 | F47: 1 | G47: 4 | H47: 1 | I47: 0.12
A48: Matt Davidson | B48: CWS - 3B | C48: 1402 | D48: -/- | E48: - | F48: - | G48: - | H48: - | I48: -
A49: Ryan Roberts | B49: KC - 3B | C49: 1406 | D49: 2/19 | E49: 1 | F49: 0 | G49: 0 | H49: 0 | I49: 0.105
A50: Kevin Youkilis | B50: NYY - 1B,3B | C50: 1412 | D50: -/- | E50: - | F50: - | G50: - | H50: - | I50: -
A51: Chad Tracy | B51: LAA - 1B,3B | C51: 1434 | D51: -/- | E51: - | F51: - | G51: - | H51: - | I51: -
A52: David Adams | B52: Bal - 2B,3B | C52: 1439 | D52: -/- | E52: - | F52: - | G52: - | H52: - | I52: -
A53: Kaleb Cowart | B53: LAA - 3B | C53: 1494 | D53: -/- | E53: - | F53: - | G53: - | H53: - | I53: -
A54: Hunter Dozier | B54: KC - 3B | C54: 1504 | D54: -/- | E54: - | F54: - | G54: - | H54: - | I54: -
A55: D.J. Peterson | B55: Sea - 3B | C55: 1509 | D55: -/- | E55: - | F55: - | G55: - | H55: - | I55: -
A56: Colin Moran | B56: Hou - 3B | C56: 1517 | D56: -/- | E56: - | F56: - | G56: - | H56: - | I56: -
A57: Michael Almánzar | B57: Bal - 3B | C57: 1526 | D57: -/- | E57: - | F57: - | G57: - | H57: - | I57: -
A58: Miles Head | B58: Oak - 3B | C58: 1546 | D58: -/- | E58: - | F58: - | G58: - | H58: - | I58: -
A59: Luis Cruz | B59: NYY - 3B,SS | C59: 1576 | D59: -/- | E59: - | F59: - | G59: - | H59: - | I59: -
A60: Wilson Betemit | B60: TB - 3B | C60: 1594 | D60: -/- | E60: - | F60: - | G60: - | H60: - | I60: -
A61: Brent Lillibridge | B61: Tex - 2B,3B | C61: 1604 | D61: -/- | E61: - | F61: - | G61: - | H61: - | I61: -
A62: John McDonald | B62: LAA - 3B,SS | C62: 1613 | D62: 13/76 | E62: 4 | F62: 0 | G62: 5 | H62: 1 | I62: 0.171

Sheet Short Stop
A1: Player | B1: Team | C1: Rank | D1: H/AB | E1: R | F1: HR | G1: RBI | H1: SB | I1: Avg.
A13: Josh Rutledge | B13: LAA - 2B,3B,SS | C13: 903 | D13: 83/309 | E13: 44 | F13: 4 | G13: 33 | H13: 2 | I13: 0.269
A15: Jonathan Villar | B15: Hou - SS | C15: 1067 | D15: 55/263 | E15: 31 | F15: 7 | G15: 27 | H15: 17 | I15: 0.209
A16: Eduardo Núñez | B16: Min - 3B,SS,OF | C16: 1076 | D16: 51/204 | E16: 26 | F16: 4 | G16: 24 | H16: 9 | I16: 0.25
A17: Marwin González | B17: Hou - 2B,3B,SS | C17: 1087 | D17: 79/285 | E17: 33 | F17: 6 | G17: 23 | H17: 2 | I17: 0.277
A18: Eric Sogard | B18: Oak - 2B,SS | C18: 1089 | D18: 65/291 | E18: 38 | F18: 1 | G18: 22 | H18: 11 | I18: 0.223
A20: Ryan Flaherty | B20: Bal - 2B,3B,SS | C20: 1114 | D20: 62/281 | E20: 33 | F20: 7 | G20: 32 | H20: 1 | I20: 0.221
A21: José Ramírez | B21: Cle - 2B,SS | C21: 1142 | D21: 62/237 | E21: 27 | F21: 2 | G21: 17 | H21: 10 | I21: 0.262
A22: Andrew Romine | B22: Det - 2B,SS | C22: 1164 | D22: 57/251 | E22: 30 | F22: 2 | G22: 12 | H22: 12 | I22: 0.227
A23: Ed Lucas | B23: Tex - 2B,SS | C23: 1190 | D23: 45/179 | E23: 19 | F23: 1 | G23: 9 | H23: 1 | I23: 0.251
A24: Ramón Santiago | B24: Tor - 2B,3B,SS | C24: 1191 | D24: 44/179 | E24: 20 | F24: 2 | G24: 17 | H24: 2 | I24: 0.246
A25: Willie Bloomquist | B25: Sea - 1B,2B,3B,SS | C25: 1193 | D25: 37/133 | E25: 15 | F25: 1 | G25: 14 | H25: 1 | I25: 0.278
A26: Chris Taylor | B26: Sea - SS | C26: 1216 | D26: 39/136 | E26: 16 | F26: 0 | G26: 9 | H26: 5 | I26: 0.287
A27: Gregorio Petit | B27: Hou - 3B,SS | C27: 1243 | D27: 27/97 | E27: 14 | F27: 2 | G27: 9 | H27: 0 | I27: 0.278
A28: José Iglesias | B28: Det - 3B,SS | C28: 1271 | D28: -/- | E28: - | F28: - | G28: - | H28: - | I28: -
A29: Ryan Goins | B29: Tor - 2B,SS | C29: 1352 | D29: 34/181 | E29: 14 | F29: 1 | G29: 15 | H29: 0 | I29: 0.188
A30: Jeff Bianchi | B30: Bos - 3B,SS | C30: 1372 | D30: 12/70 | E30: 4 | F30: 0 | G30: 6 | H30: 0 | I30: 0.171
A31: Jorge Polanco | B31: Min - SS | C31: 1399 | D31: 2/6 | E31: 2 | F31: 0 | G31: 3 | H31: 0 | I31: 0.333
A32: Álex González | B32: Det - SS | C32: 1424 | D32: 5/30 | E32: 4 | F32: 0 | G32: 2 | H32: 0 | I32: 0.167
A33: Jonathan Díaz | B33: Tor - SS | C33: 1448 | D33: 6/38 | E33: 3 | F33: 0 | G33: 4 | H33: 1 | I33: 0.158
A34: Tim Beckham | B34: TB - SS | C34: 1461 | D34: -/- | E34: - | F34: - | G34: - | H34: - | I34: -
A35: César Izturis | B35: Hou - 2B,SS | C35: 1463 | D35: -/- | E35: - | F35: - | G35: - | H35: - | I35: -
A36: Brendan Ryan | B36: NYY - 2B,SS | C36: 1472 | D36: 19/114 | E36: 5 | F36: 0 | G36: 8 | H36: 0 | I36: 0.167
A37: Tim Anderson | B37: CWS - SS | C37: 1482 | D37: -/- | E37: - | F37: - | G37: - | H37: - | I37: -
A38: Willy Adames | B38: TB - SS | C38: 1499 | D38: -/- | E38: - | F38: - | G38: - | H38: - | I38: -
A39: Hak-Ju Lee | B39: TB - SS | C39: 1512 | D39: -/- | E39: - | F39: - | G39: - | H39: - | I39: -
A40: Hiroyuki Nakajima | B40: Oak - SS | C40: 1520 | D40: -/- | E40: - | F40: - | G40: - | H40: - | I40: -
A41: Nick Gordon | B41: Min - SS | C41: 1533 | D41: -/- | E41: - | F41: - | G41: - | H41: - | I41: -
A42: Daniel Robertson | B42: TB - SS | C42: 1559 | D42: -/- | E42: - | F42: - | G42: - | H42: - | I42: -
A43: Raúl Mondesí | B43: KC - SS | C43: 1566 | D43: -/- | E43: - | F43: - | G43: - | H43: - | I43: -
A44: Luis Cruz | B44: NYY - 3B,SS | C44: 1576 | D44: -/- | E44: - | F44: - | G44: - | H44: - | I44: -
A45: Ryan Jackson | B45: KC - 2B,SS | C45: 1582 | D45: -/- | E45: - | F45: - | G45: - | H45: - | I45: -
A46: Andy Parrino | B46: Oak - SS | C46: 1593 | D46: 7/46 | E46: 4 | F46: 1 | G46: 3 | H46: 0 | I46: 0.152
A47: John McDonald | B47: LAA - 3B,SS | C47: 1613 | D47: 13/76 | E47: 4 | F47: 0 | G47: 5 | H47: 1 | I47: 0.171

Sheet Outfield
A1: Player | B1: Team | C1: Rank | D1: H/AB | E1: R | F1: HR | G1: RBI | H1: SB | I1: Avg.
A23: Adam Dunn | B23: Oak - 1B,OF | C23: 346 | D23: 94/429 | E23: 49 | F23: 22 | G23: 64 | H23: 1 | I23: 0.219
A26: Seth Smith | B26: Sea - OF | C26: 398 | D26: 118/443 | E26: 55 | F26: 12 | G26: 48 | H26: 1 | I26: 0.266
A29: Matt Joyce | B29: LAA - OF | C29: 408 | D29: 106/418 | E29: 51 | F29: 9 | G29: 52 | H29: 2 | I29: 0.254
A32: Michael Bourn | B32: Cle - OF | C32: 437 | D32: 114/444 | E32: 57 | F32: 3 | G32: 28 | H32: 10 | I32: 0.257
A34: Daniel Nava | B34: Bos - 1B,OF | C34: 457 | D34: 98/363 | E34: 41 | F34: 4 | G34: 37 | H34: 4 | I34: 0.27
A35: David Murphy | B35: Cle - OF | C35: 519 | D35: 109/416 | E35: 40 | F35: 8 | G35: 58 | H35: 2 | I35: 0.262
A37: Josh Willingham | B37: KC - OF | C37: 809 | D37: 64/297 | E37: 48 | F37: 14 | G37: 40 | H37: 2 | I37: 0.215
A38: Chris Young | B38: NYY - OF | C38: 881 | D38: 72/325 | E38: 40 | F38: 11 | G38: 38 | H38: 8 | I38: 0.222
A39: Sam Fuld | B39: Oak - OF | C39: 888 | D39: 84/351 | E39: 40 | F39: 4 | G39: 36 | H39: 21 | I39: 0.239
A41: Justin Ruggiano | B41: Sea - OF | C41: 923 | D41: 63/224 | E41: 29 | F41: 6 | G41: 28 | H41: 2 | I41: 0.281
A42: Alfonso Soriano | B42: NYY - OF | C42: 930 | D42: 50/226 | E42: 22 | F42: 6 | G42: 23 | H42: 1 | I42: 0.221
A43: Craig Gentry | B43: Oak - OF | C43: 941 | D43: 59/232 | E43: 38 | F43: 0 | G43: 12 | H43: 20 | I43: 0.254
A44: Delmon Young | B44: Bal - OF | C44: 942 | D44: 73/242 | E44: 27 | F44: 7 | G44: 30 | H44: 2 | I44: 0.302
A45: Jordan Schafer | B45: Min - OF | C45: 968 | D45: 50/210 | E45: 26 | F45: 1 | G45: 15 | H45: 30 | I45: 0.238
A46: Robbie Grossman | B46: Hou - OF | C46: 996 | D46: 84/360 | E46: 42 | F46: 6 | G46: 37 | H46: 9 | I46: 0.233
A49: James Jones | B49: Sea - OF | C49: 1053 | D49: 78/312 | E49: 46 | F49: 0 | G49: 9 | H49: 27 | I49: 0.25
A51: Eduardo Núñez | B51: Min - 3B,SS,OF | C51: 1076 | D51: 51/204 | E51: 26 | F51: 4 | G51: 24 | H51: 9 | I51: 0.25
A52: David Lough | B52: Bal - OF | C52: 1078 | D52: 43/174 | E52: 31 | F52: 4 | G52: 16 | H52: 8 | I52: 0.247
A53: Nate Schierholtz | B53: Tex - OF | C53: 1082 | D53: 69/353 | E53: 32 | F53: 7 | G53: 37 | H53: 4 | I53: 0.195
A54: Brandon Guyer | B54: TB - OF | C54: 1104 | D54: 69/259 | E54: 37 | F54: 3 | G54: 26 | H54: 6 | I54: 0.266
A55: Ryan Ludwick | B55: Tex - OF | C55: 1105 | D55: 87/357 | E55: 28 | F55: 9 | G55: 45 | H55: 0 | I55: 0.244
A56: Collin Cowgill | B56: LAA - OF | C56: 1111 | D56: 65/260 | E56: 37 | F56: 5 | G56: 21 | H56: 4 | I56: 0.25
A57: Chris Parmelee | B57: Bal - 1B,OF | C57: 1115 | D57: 64/250 | E57: 27 | F57: 7 | G57: 28 | H57: 0 | I57: 0.256
A58: David DeJesús | B58: TB - OF | C58: 1121 | D58: 59/238 | E58: 24 | F58: 6 | G58: 19 | H58: 0 | I58: 0.248
A59: Endy Chávez | B59: Sea - OF | C59: 1128 | D59: 64/232 | E59: 22 | F59: 2 | G59: 23 | H59: 5 | I59: 0.276
A61: Raúl Ibañez | B61: KC - OF | C61: 1144 | D61: 41/246 | E61: 23 | F61: 5 | G61: 26 | H61: 3 | I61: 0.167
A62: Alex Presley | B62: Hou - OF | C62: 1148 | D62: 62/254 | E62: 22 | F62: 6 | G62: 19 | H62: 5 | I62: 0.244
A63: Chris Colabello | B63: Tor - 1B,OF | C63: 1151 | D63: 47/205 | E63: 17 | F63: 6 | G63: 39 | H63: 0 | I63: 0.229
A65: Ryan Raburn | B65: Cle - OF | C65: 1159 | D65: 39/195 | E65: 18 | F65: 4 | G65: 22 | H65: 0 | I65: 0.2
A66: Daniel Robertson | B66: LAA - OF | C66: 1167 | D66: 48/177 | E66: 23 | F66: 0 | G66: 21 | H66: 6 | I66: 0.271
A67: Jackie Bradley Jr. | B67: Bos - OF | C67: 1171 | D67: 76/384 | E67: 45 | F67: 1 | G67: 30 | H67: 8 | I67: 0.198
A68: Aaron Hicks | B68: Min - OF | C68: 1185 | D68: 40/186 | E68: 22 | F68: 1 | G68: 18 | H68: 4 | I68: 0.215
A70: J.B. Shuck | B70: CWS - OF | C70: 1207 | D70: 16/110 | E70: 12 | F70: 2 | G70: 9 | H70: 2 | I70: 0.145
A71: Michael Choice | B71: Tex - OF | C71: 1208 | D71: 46/253 | E71: 20 | F71: 9 | G71: 36 | H71: 1 | I71: 0.182
A72: Moisés Sierra | B72: KC - OF | C72: 1210 | D72: 37/161 | E72: 22 | F72: 2 | G72: 9 | H72: 3 | I72: 0.23
A74: Zach Walters | B74: Cle - OF | C74: 1218 | D74: 23/127 | E74: 16 | F74: 10 | G74: 17 | H74: 0 | I74: 0.181
A76: Marc Krauss | B76: LAA - 1B,OF | C76: 1232 | D76: 36/186 | E76: 16 | F76: 6 | G76: 21 | H76: 0 | I76: 0.194
A77: Chris Dickerson | B77: Cle - OF | C77: 1235 | D77: 22/98 | E77: 12 | F77: 2 | G77: 6 | H77: 3 | I77: 0.224
A78: Andy Dirks | B78: Tor - OF | C78: 1240 | D78: -/- | E78: - | F78: - | G78: - | H78: - | I78: -
A79: Grant Green | B79: LAA - 2B,OF | C79: 1244 | D79: 27/99 | E79: 7 | F79: 1 | G79: 11 | H79: 1 | I79: 0.273
A80: Efrén Navarro | B80: LAA - 1B,OF | C80: 1245 | D80: 39/159 | E80: 17 | F80: 1 | G80: 14 | H80: 1 | I80: 0.245
A81: Nolan Reimold | B81: Bal - OF | C81: 1254 | D81: 16/69 | E81: 5 | F81: 3 | G81: 13 | H81: 1 | I81: 0.232
A82: Ezequiel Carrera | B82: Tor - OF | C82: 1263 | D82: 18/69 | E82: 12 | F82: 0 | G82: 2 | H82: 7 | I82: 0.261
A83: Nyjer Morgan | B83: Cle - OF | C83: 1264 | D83: 14/41 | E83: 8 | F83: 1 | G83: 6 | H83: 3 | I83: 0.341
A84: Jason Kubel | B84: Min - OF | C84: 1266 | D84: 35/156 | E84: 12 | F84: 1 | G84: 13 | H84: 1 | I84: 0.224
A85: Jesús Guzmán | B85: Hou - 1B,OF | C85: 1277 | D85: 31/165 | E85: 10 | F85: 2 | G85: 9 | H85: 3 | I85: 0.188
A86: L.J. Hoes | B86: Hou - OF | C86: 1279 | D86: 21/122 | E86: 12 | F86: 3 | G86: 11 | H86: 0 | I86: 0.172
A87: Andrew Brown | B87: Oak - OF | C87: 1282 | D87: 8/44 | E87: 6 | F87: 2 | G87: 7 | H87: 0 | I87: 0.182
A88: Ryan Kalish | B88: Tor - OF | C88: 1294 | D88: 30/121 | E88: 13 | F88: 0 | G88: 5 | H88: 3 | I88: 0.248
A89: Leury García | B89: CWS - 2B,3B,OF | C89: 1298 | D89: 24/145 | E89: 13 | F89: 1 | G89: 6 | H89: 11 | I89: 0.166
A90: Tony Campana | B90: CWS - OF | C90: 1304 | D90: 14/75 | E90: 10 | F90: 0 | G90: 5 | H90: 4 | I90: 0.187
A91: Matt Tuiasosopo | B91: Tor - 3B,OF | C91: 1316 | D91: -/- | E91: - | F91: - | G91: - | H91: - | I91: -
A92: Franklin Gutiérrez | B92: Sea - OF | C92: 1317 | D92: -/- | E92: - | F92: - | G92: - | H92: - | I92: -
A93: Jason Bay | B93: Sea - OF | C93: 1320 | D93: -/- | E93: - | F93: - | G93: - | H93: - | I93: -
A94: Stefen Romero | B94: Sea - OF | C94: 1321 | D94: 34/177 | E94: 19 | F94: 3 | G94: 11 | H94: 0 | I94: 0.192
A95: Chris Herrmann | B95: Min - OF | C95: 1332 | D95: 16/75 | E95: 8 | F95: 0 | G95: 4 | H95: 1 | I95: 0.213
A96: Jim Adduci | B96: Tex - OF | C96: 1335 | D96: 17/101 | E96: 13 | F96: 1 | G96: 8 | H96: 3 | I96: 0.168
A97: Antoan Richardson | B97: Tex - OF | C97: 1340 | D97: 5/16 | E97: 2 | F97: 0 | G97: 1 | H97: 5 | I97: 0.313
A98: Elliot Johnson | B98: Cle - OF | C98: 1348 | D98: 2/19 | E98: 1 | F98: 0 | G98: 0 | H98: 0 | I98: 0.105
A99: Quintin Berry | B99: Bos - OF | C99: 1363 | D99: 0/2 | E99: 3 | F99: 0 | G99: 0 | H99: 1 | I99: 0
A100: Bryce Brentz | B100: Bos - OF | C100: 1368 | D100: 8/26 | E100: 5 | F100: 0 | G100: 2 | H100: 0 | I100: 0.308
A101: Tyler Holt | B101: Cle - OF | C101: 1369 | D101: 19/71 | E101: 4 | F101: 0 | G101: 2 | H101: 2 | I101: 0.268
A102: Tyler Collins | B102: Det - OF | C102: 1373 | D102: 6/24 | E102: 3 | F102: 1 | G102: 4 | H102: 0 | I102: 0.25
A103: Zelous Wheeler | B103: NYY - 3B,OF | C103: 1374 | D103: 11/57 | E103: 6 | F103: 2 | G103: 5 | H103: 0 | I103: 0.193
A104: Trevor Crowe | B104: Det - OF | C104: 1382 | D104: -/- | E104: - | F104: - | G104: - | H104: - | I104: -
A105: Shane Robinson | B105: Min - OF | C105: 1386 | D105: 9/60 | E105: 3 | F105: 0 | G105: 4 | H105: 0 | I105: 0.15
A106: Xavier Nady | B106: Sea - OF | C106: 1387 | D106: 5/37 | E106: 4 | F106: 3 | G106: 4 | H106: 0 | I106: 0.135
A107: Caleb Gindl | B107: Tor - OF | C107: 1390 | D107: 3/19 | E107: 0 | F107: 0 | G107: 0 | H107: 0 | I107: 0.158
A108: Alfredo Marte | B108: LAA - OF | C108: 1397 | D108: 18/106 | E108: 8 | F108: 2 | G108: 9 | H108: 1 | I108: 0.17
A109: Shawn O'Malley | B109: Sea - OF | C109: 1401 | D109: 3/16 | E109: 3 | F109: 0 | G109: 1 | H109: 2 | I109: 0.188
A110: Steven Moyà | B110: Det - OF | C110: 1418 | D110: 3/8 | E110: 2 | F110: 0 | G110: 0 | H110: 0 | I110: 0.375
A111: Carlos Peguero | B111: Tex - OF | C111: 1429 | D111: 2/9 | E111: 1 | F111: 0 | G111: 1 | H111: 0 | I111: 0.222
A112: Engel Beltre | B112: CWS - OF | C112: 1435 | D112: -/- | E112: - | F112: - | G112: - | H112: - | I112: -
A113: Dewayne Wise | B113: CWS - OF | C113: 1438 | D113: -/- | E113: - | F113: - | G113: - | H113: - | I113: -
A114: Jason Bartlett | B114: Min - OF | C114: 1443 | D114: 0/3 | E114: 3 | F114: 0 | G114: 0 | H114: 0 | I114: 0
A115: Francisco Peguero | B115: Bal - OF | C115: 1444 | D115: -/- | E115: - | F115: - | G115: - | H115: - | I115: -
A116: Henry Urrutia | B116: Bal - OF | C116: 1447 | D116: -/- | E116: - | F116: - | G116: - | H116: - | I116: -
A117: Roger Kieschnick | B117: LAA - OF | C117: 1454 | D117: 8/41 | E117: 2 | F117: 1 | G117: 2 | H117: 0 | I117: 0.195
A118: Reymond Fuentes | B118: KC - OF | C118: 1459 | D118: -/- | E118: - | F118: - | G118: - | H118: - | I118: -
A119: Corey Brown | B119: TB - OF | C119: 1462 | D119: 0/1 | E119: 0 | F119: 0 | G119: 0 | H119: 0 | I119: 0
A120: Michael Taylor | B120: CWS - OF | C120: 1474 | D120: 7/28 | E120: 3 | F120: 0 | G120: 0 | H120: 0 | I120: 0.25
A121: Nick Williams | B121: Tex - OF | C121: 1476 | D121: -/- | E121: - | F121: - | G121: - | H121: - | I121: -
A122: Bradley Zimmer | B122: Cle - OF | C122: 1478 | D122: -/- | E122: - | F122: - | G122: - | H122: - | I122: -
A123: Tyler Austin | B123: NYY - OF | C123: 1495 | D123: -/- | E123: - | F123: - | G123: - | H123: - | I123: -
A124: Jorge Bonifacio | B124: KC - OF | C124: 1496 | D124: -/- | E124: - | F124: - | G124: - | H124: - | I124: -
A125: Aaron Judge | B125: NYY - OF | C125: 1507 | D125: -/- | E125: - | F125: - | G125: - | H125: - | I125: -
A126: Gareth Morgan | B126: Sea - OF | C126: 1510 | D126: -/- | E126: - | F126: - | G126: - | H126: - | I126: -
A127: Xavier Avery | B127: Sea - OF | C127: 1518 | D127: -/- | E127: - | F127: - | G127: - | H127: - | I127: -
A128: Manuel Margot | B128: Bos - OF | C128: 1523 | D128: -/- | E128: - | F128: - | G128: - | H128: - | I128: -
A129: Mason Williams | B129: NYY - OF | C129: 1530 | D129: -/- | E129: - | F129: - | G129: - | H129: - | I129: -
A130: Mikie Mahtook | B130: TB - OF | C130: 1535 | D130: -/- | E130: - | F130: - | G130: - | H130: - | I130: -
A131: Clint Frazier | B131: Cle - OF | C131: 1544 | D131: -/- | E131: - | F131: - | G131: - | H131: - | I131: -
A132: Bubba Starling | B132: KC - OF | C132: 1547 | D132: -/- | E132: - | F132: - | G132: - | H132: - | I132: -
A133: Derek Hill | B133: Det - OF | C133: 1555 | D133: -/- | E133: - | F133: - | G133: - | H133: - | I133: -
A134: Alex Jackson | B134: Sea - OF | C134: 1556 | D134: -/- | E134: - | F134: - | G134: - | H134: - | I134: -
A135: Lane Adams | B135: KC - OF | C135: 1573 | D135: 0/3 | E135: 1 | F135: 0 | G135: 0 | H135: 0 | I135: 0
A136: Jason Pridie | B136: Oak - OF | C136: 1581 | D136: 0/4 | E136: 1 | F136: 0 | G136: 0 | H136: 0 | I136: 0
A137: Alex Hassan | B137: Bal - OF | C137: 1585 | D137: 1/8 | E137: 1 | F137: 0 | G137: 0 | H137: 0 | I137: 0.125
A138: Joey Butler | B138: TB - OF | C138: 1590 | D138: 0/5 | E138: 0 | F138: 0 | G138: 0 | H138: 0 | I138: 0
A139: Nick Buss | B139: Oak - OF | C139: 1600 | D139: -/- | E139: - | F139: - | G139: - | H139: - | I139: -
A140: Brad Glenn | B140: Tor - OF | C140: 1623 | D140: 1/15 | E140: 0 | F140: 0 | G140: 0 | H140: 0 | I140: 0.067
A141: Domingo Santana | B141: Hou - OF | C141: 1628 | D141: 0/17 | E141: 1 | F141: 0 | G141: 0 | H141: 0 | I141: 0

Sheet DH
A1: Player | B1: Team | C1: Rank | D1: H/AB | E1: R | F1: HR | G1: RBI | H1: SB | I1: Avg.

Sheet Pitchers
A1: Player | B1: Team | C1: Rank | D1: IP | E1: W | F1: S | G1: K | H1: ERA | I1: WHIP
A18: Cory Rasmus | B18: LAA - SP,RP | C18: 371 | D18: 56 | E18: 3 | F18: 0 | G18: 57 | H18: 2.57 | I18: 1.05
A21: Tim Stauffer | B21: Min - SP,RP | C21: 400 | D21: 64.1 | E21: 6 | F21: 0 | G21: 67 | H21: 3.5 | I21: 1.4
A22: Kris Medlen | B22: KC - SP | C22: 411 | D22: - | E22: - | F22: - | G22: - | H22: - | I22: -
A23: Luke Hochevar | B23: KC - SP,RP | C23: 414 | D23: - | E23: - | F23: - | G23: - | H23: - | I23: -
A27: Gavin Floyd | B27: Cle - SP | C27: 464 | D27: 54.1 | E27: 2 | F27: 0 | G27: 45 | H27: 2.65 | I27: 1.25
A28: Lisalverto Bonilla | B28: Tex - SP | C28: 472 | D28: 20.2 | E28: 3 | F28: 0 | G28: 17 | H28: 3.05 | I28: 1.21
A35: Ross Ohlendorf | B35: Tex - SP,RP | C35: 540 | D35: - | E35: - | F35: - | G35: - | H35: - | I35: -
A37: Tyler Skaggs | B37: LAA - SP | C37: 555 | D37: 113 | E37: 5 | F37: 0 | G37: 86 | H37: 4.3 | I37: 1.21
A41: Dustin McGowan | B41: Tor - SP,RP | C41: 600 | D41: 82 | E41: 5 | F41: 1 | G41: 61 | H41: 4.17 | I41: 1.38
A42: Enny Romero | B42: TB - SP | C42: 615 | D42: - | E42: - | F42: - | G42: - | H42: - | I42: -
A44: J.R. Graham | B44: Min - SP | C44: 644 | D44: - | E44: - | F44: - | G44: - | H44: - | I44: -
A45: Alex White | B45: Hou - SP | C45: 646 | D45: - | E45: - | F45: - | G45: - | H45: - | I45: -
A46: Eddie Gamboa | B46: Bal - SP | C46: 649 | D46: - | E46: - | F46: - | G46: - | H46: - | I46: -
A47: Kohl Stewart | B47: Min - SP | C47: 650 | D47: - | E47: - | F47: - | G47: - | H47: - | I47: -
A48: Sean Manaea | B48: KC - SP | C48: 651 | D48: - | E48: - | F48: - | G48: - | H48: - | I48: -
A49: Mike Montgomery | B49: TB - SP | C49: 657 | D49: - | E49: - | F49: - | G49: - | H49: - | I49: -
A50: Miguel Almonte | B50: KC - SP | C50: 660 | D50: - | E50: - | F50: - | G50: - | H50: - | I50: -
A51: Hunter Harvey | B51: Bal - SP | C51: 662 | D51: - | E51: - | F51: - | G51: - | H51: - | I51: -
A52: John Lamb | B52: KC - SP | C52: 664 | D52: - | E52: - | F52: - | G52: - | H52: - | I52: -
A54: Luke Jackson | B54: Tex - SP | C54: 668 | D54: - | E54: - | F54: - | G54: - | H54: - | I54: -
A55: Sean Newcomb | B55: LAA - SP | C55: 670 | D55: - | E55: - | F55: - | G55: - | H55: - | I55: -
A56: Taylor Guerrieri | B56: TB - SP | C56: 673 | D56: - | E56: - | F56: - | G56: - | H56: - | I56: -
A57: Suk-min Yoon | B57: Bal - SP | C57: 675 | D57: - | E57: - | F57: - | G57: - | H57: - | I57: -
A58: Casey Crosby | B58: Det - SP | C58: 677 | D58: - | E58: - | F58: - | G58: - | H58: - | I58: -
A61: Lance McCullers | B61: Hou - SP | C61: 684 | D61: - | E61: - | F61: - | G61: - | H61: - | I61: -
A62: Oliver Drake | B62: Bal - SP | C62: 689 | D62: - | E62: - | F62: - | G62: - | H62: - | I62: -
A63: Johan Santana | B63: Bal - SP | C63: 695 | D63: - | E63: - | F63: - | G63: - | H63: -
A64: Arnold León | B64: Oak - SP | C64: 696 | D64: - | E64: - | F64: - | G64: - | H64: - | I64: -
A65: Kyle Zimmer | B65: KC - SP | C65: 699 | D65: - | E65: - | F65: - | G65: - | H65: - | I65: -
A66: Jeff Hoffman | B66: Tor - SP | C66: 704 | D66: - | E66: - | F66: - | G66: - | H66: - | I66: -
A67: Eduardo Rodríguez | B67: Bos - SP | C67: 707 | D67: - | E67: - | F67: - | G67: - | H67: - | I67: -
A68: Josh Tomlin | B68: Cle - SP,RP | C68: 737 | D68: 104 | E68: 6 | F68: 0 | G68: 94 | H68: 4.76 | I68: 1.29
A69: César Ramos | B69: LAA - SP,RP | C69: 741 | D69: 82.2 | E69: 2 | F69: 0 | G69: 66 | H69: 3.7 | I69: 1.35
A70: Nick Tropeano | B70: LAA - SP | C70: 757 | D70: 21.2 | E70: 1 | F70: 0 | G70: 13 | H70: 4.57 | I70: 1.29
A71: Kyle Lobstein | B71: Det - SP | C71: 771 | D71: 39.1 | E71: 1 | F71: 0 | G71: 27 | H71: 4.35 | I71: 1.25
A72: Steve Johnson | B72: Bal - SP | C72: 774 | D72: - | E72: - | F72: - | G72: - | H72: - | I72: -
A73: Drew VerHagen | B73: Det - SP | C73: 776 | D73: 5 | E73: 0 | F73: 0 | G73: 4 | H73: 5.4 | I73: 1.6
A74: Anthony Ranaudo | B74: Tex - SP | C74: 813 | D74: 39.1 | E74: 4 | F74: 0 | G74: 15 | H74: 4.81 | I74: 1.4
A75: Tommy Milone | B75: Min - SP | C75: 824 | D75: 118 | E75: 6 | F75: 0 | G75: 75 | H75: 4.19 | I75: 1.4
A76: Wade LeBlanc | B76: LAA - SP,RP | C76: 827 | D76: 29.2 | E76: 1 | F76: 0 | G76: 21 | H76: 3.94 | I76: 1.15
A77: Burch Smith | B77: TB - SP,RP | C77: 828 | D77: - | E77: - | F77: - | G77: - | H77: - | I77: -
A78: Ramón Ortiz | B78: Tor - SP,RP | C78: 830 | D78: - | E78: - | F78: - | G78: - | H78: - | I78: -
A79: Ryan Dempster | B79: Bos - SP | C79: 831 | D79: - | E79: - | F79: - | G79: - | H79: - | I79: -
A80: Shaun Marcum | B80: Cle - SP,RP | C80: 844 | D80: - | E80: - | F80: - | G80: - | H80: - | I80: -
A81: Phil Irwin | B81: Tex - SP | C81: 855 | D81: 4 | E81: 0 | F81: 0 | G81: 2 | H81: 6.75 | I81: 2
A82: Jeremy Bonderman | B82: Det - SP | C82: 858 | D82: - | E82: - | F82: - | G82: - | H82: - | I82: -
A83: Tommy Hanson | B83: Tex - SP | C83: 866 | D83: - | E83: - | F83: - | G83: - | H83: - | I83: -
A84: Chris Bassitt | B84: Oak - SP | C84: 872 | D84: 29.2 | E84: 1 | F84: 0 | G84: 21 | H84: 3.94 | I84: 1.58
A85: Rudy Owens | B85: Oak - SP | C85: 893 | D85: 5.2 | E85: 0 | F85: 0 | G85: 1 | H85: 7.94 | I85: 1.94
A86: Randy Wolf | B86: LAA - SP | C86: 902 | D86: 25.2 | E86: 1 | F86: 1 | G86: 19 | H86: 5.26 | I86: 1.52
A89: Kris Johnson | B89: Min - SP | C89: 951 | D89: 13.1 | E89: 0 | F89: 0 | G89: 12 | H89: 4.73 | I89: 1.95
A90: Yohan Pino | B90: KC - SP | C90: 955 | D90: 60.1 | E90: 2 | F90: 0 | G90: 50 | H90: 5.07 | I90: 1.33
A91: Matt Harrison | B91: Tex - SP | C91: 957 | D91: 17.1 | E91: 1 | F91: 0 | G91: 10 | H91: 4.15 | I91: 1.85
A93: Scott Baker | B93: NYY - SP,RP | C93: 967 | D93: 80.2 | E93: 3 | F93: 0 | G93: 55 | H93: 5.47 | I93: 1.19
A96: Chris Capuano | B96: NYY - SP,RP | C96: 987 | D96: 97.1 | E96: 3 | F96: 0 | G96: 84 | H96: 4.35 | I96: 1.39
A97: Brett Oberholtzer | B97: Hou - SP | C97: 992 | D97: 143.2 | E97: 5 | F97: 0 | G97: 94 | H97: 4.39 | I97: 1.38
A98: Ubaldo Jiménez | B98: Bal - SP | C98: 994 | D98: 125.1 | E98: 6 | F98: 0 | G98: 116 | H98: 4.81 | I98: 1.52
A99: Scott Diamond | B99: Min - SP | C99: 1002 | D99: - | E99: - | F99: - | G99: - | H99: - | I99: -
A100: Tanner Scheppers | B100: Tex - SP | C100: 1012 | D100: 23 | E100: 0 | F100: 0 | G100: 17 | H100: 9 | I100: 1.78
A101: Erik Johnson | B101: CWS - SP | C101: 1018 | D101: 23.2 | E101: 1 | F101: 0 | G101: 18 | H101: 6.46 | I101: 1.77
A102: Samuel Deduno | B102: Hou - SP,RP | C102: 1024 | D102: 100.2 | E102: 2 | F102: 0 | G102: 83 | H102: 4.47 | I102: 1.42
A103: Zach McAllister | B103: Cle - SP,RP | C103: 1028 | D103: 86 | E103: 4 | F103: 0 | G103: 74 | H103: 5.23 | I103: 1.44
A104: Anthony Swarzak | B104: Cle - SP,RP | C104: 1038 | D104: 86 | E104: 3 | F104: 0 | G104: 47 | H104: 4.6 | I104: 1.49
A106: Liam Hendriks | B106: Tor - SP | C106: 1042 | D106: 32.2 | E106: 1 | F106: 0 | G106: 23 | H106: 5.23 | I106: 1.38
A107: Logan Darnell | B107: Min - SP | C107: 1046 | D107: 24 | E107: 0 | F107: 0 | G107: 22 | H107: 7.13 | I107: 1.63
A108: Brad Penny | B108: CWS - SP | C108: 1048 | D108: 26 | E108: 2 | F108: 0 | G108: 13 | H108: 6.58 | I108: 1.81
A109: Joe Blanton | B109: LAA - SP | C109: 1051 | D109: - | E109: - | F109: - | G109: - | H109: - | I109: -
A110: Chase Whitley | B110: NYY - SP,RP | C110: 1057 | D110: 75.2 | E110: 4 | F110: 0 | G110: 60 | H110: 5.23 | I110: 1.48
A111: Dan Straily | B111: Hou - SP,RP | C111: 1068 | D111: 52 | E111: 1 | F111: 0 | G111: 47 | H111: 6.75 | I111: 1.48
A112: Brad Mills | B112: Oak - SP | C112: 1081 | D112: 20.2 | E112: 1 | F112: 0 | G112: 19 | H112: 9.15 | I112: 1.94
A113: Nick Tepesch | B113: Tex - SP | C113: 1083 | D113: 126 | E113: 5 | F113: 0 | G113: 56 | H113: 4.36 | I113: 1.37
A114: Brandon Workman | B114: Bos - SP | C114: 1091 | D114: 87 | E114: 1 | F114: 0 | G114: 70 | H114: 5.17 | I114: 1.43
A115: Miles Mikolas | B115: Tex - SP | C115: 1095 | D115: 57.1 | E115: 2 | F115: 0 | G115: 38 | H115: 6.44 | I115: 1.43
A116: Bruce Chen | B116: KC - SP,RP | C116: 1110 | D116: 48.1 | E116: 2 | F116: 0 | G116: 36 | H116: 7.45 | I116: 1.76
A118: Erasmo Ramírez | B118: Sea - SP | C118: 1123 | D118: 75.1 | E118: 1 | F118: 0 | G118: 60 | H118: 5.26 | I118: 1.54
A119: Nick Martínez | B119: Tex - SP,RP | C119: 1125 | D119: 140.1 | E119: 5 | F119: 0 | G119: 77 | H119: 4.55 | I119: 1.46
A120: Trevor May | B120: Min - SP | C120: 1127 | D120: 45.2 | E120: 3 | F120: 0 | G120: 44 | H120: 7.88 | I120: 1.77
A121: Felipe Paulino | B121: Bos - SP | C121: 1136 | D121: 18.1 | E121: 0 | F121: 0 | G121: 14 | H121: 11.29 | I121: 2.56
A122: Brad Peacock | B122: Hou - SP | C122: 1138 | D122: 131.2 | E122: 4 | F122: 0 | G122: 119 | H122: 4.72 | I122: 1.56
A123: John Danks | B123: CWS - SP | C123: 1139 | D123: 193.2 | E123: 11 | F123: 0 | G123: 129 | H123: 4.74 | I123: 1.44
A125: Scott Carroll | B125: CWS - SP,RP | C125: 1143 | D125: 129.1 | E125: 5 | F125: 0 | G125: 64 | H125: 4.8 | I125: 1.48
A126: Mike Pelfrey | B126: Min - SP | C126: 1162 | D126: 23.2 | E126: 0 | F126: 0 | G126: 10 | H126: 7.99 | I126: 1.99
A127: Robbie Ross Jr. | B127: Bos - SP,RP | C127: 1163 | D127: 78.1 | E127: 3 | F127: 0 | G127: 51 | H127: 6.2 | I127: 1.7
A128: Colby Lewis | B128: Tex - SP | C128: 1166 | D128: 170.1 | E128: 10 | F128: 0 | G128: 133 | H128: 5.18 | I128: 1.52
A129: Ricky Nolasco | B129: Min - SP | C129: 1169 | D129: 159 | E129: 6 | F129: 0 | G129: 115 | H129: 5.38 | I129: 1.52
A130: Joe Saunders | B130: Bal - SP,RP | C130: 1267 | D130: 43 | E130: 0 | F130: 0 | G130: 23 | H130: 6.7 | I130: 2.07

Sheet Relief Pitchers
A1: Player | B1: Team | C1: Rank | D1: IP | E1: W | F1: S | G1: K | H1: ERA | I1: WHIP
A13: Fernando Abad | B13: Oak - RP | C13: 310 | D13: 57.1 | E13: 2 | F13: 0 | G13: 51 | H13: 1.57 | I13: 0.85
A14: Scott Atchison | B14: Cle - RP | C14: 320 | D14: 72 | E14: 6 | F14: 2 | G14: 49 | H14: 2.75 | I14: 1.03
A19: Tony Sipp | B19: Hou - RP | C19: 332 | D19: 50.2 | E19: 4 | F19: 4 | G19: 63 | H19: 3.38 | I19: 0.89
A25: Anthony Varvaro | B25: Bos - RP | C25: 357 | D25: 54.2 | E25: 3 | F25: 0 | G25: 50 | H25: 2.63 | I25: 1.08
A26: Yoervis Medina | B26: Sea - RP | C26: 363 | D26: 57 | E26: 5 | F26: 0 | G26: 60 | H26: 2.68 | I26: 1.33
A27: Al Alburquerque | B27: Det - RP | C27: 364 | D27: 57.1 | E27: 3 | F27: 1 | G27: 63 | H27: 2.51 | I27: 1.17
A30: Brad Brach | B30: Bal - RP | C30: 367 | D30: 62.1 | E30: 7 | F30: 0 | G30: 54 | H30: 3.18 | I30: 1.17
A31: Cory Rasmus | B31: LAA - SP,RP | C31: 371 | D31: 56 | E31: 3 | F31: 0 | G31: 57 | H31: 2.57 | I31: 1.05
A32: Fernando Salas | B32: LAA - RP | C32: 373 | D32: 58.2 | E32: 5 | F32: 0 | G32: 61 | H32: 3.38 | I32: 1.09
A34: Shawn Tolleson | B34: Tex - RP | C34: 377 | D34: 71.2 | E34: 3 | F34: 0 | G34: 69 | H34: 2.76 | I34: 1.17
A35: Casey Fien | B35: Min - RP | C35: 380 | D35: 63.1 | E35: 5 | F35: 1 | G35: 51 | H35: 3.98 | I35: 1.17
A36: Kyle Crockett | B36: Cle - RP | C36: 381 | D36: 30 | E36: 4 | F36: 0 | G36: 28 | H36: 1.8 | I36: 1.13
A37: Ryan Cook | B37: Oak - RP | C37: 383 | D37: 50 | E37: 1 | F37: 1 | G37: 50 | H37: 3.42 | I37: 1.08
A38: Mike Morin | B38: LAA - RP | C38: 388 | D38: 59 | E38: 4 | F38: 0 | G38: 54 | H38: 2.9 | I38: 1.19
A41: Tim Stauffer | B41: Min - SP,RP | C41: 400 | D41: 64.1 | E41: 6 | F41: 0 | G41: 67 | H41: 3.5 | I41: 1.4
A42: Joe Beimel | B42: Sea - RP | C42: 407 | D42: 45 | E42: 3 | F42: 0 | G42: 25 | H42: 2.2 | I42: 1.18
A43: Luke Hochevar | B43: KC - SP,RP | C43: 414 | D43: - | E43: - | F43: - | G43: - | H43: - | I43: -
A44: Jake Petricka | B44: CWS - RP | C44: 418 | D44: 73 | E44: 1 | F44: 14 | G44: 55 | H44: 2.96 | I44: 1.37
A45: Eric O'Flaherty | B45: Oak - RP | C45: 422 | D45: 20 | E45: 1 | F45: 1 | G45: 15 | H45: 2.25 | I45: 0.95
A46: Josh Fields | B46: Hou - RP | C46: 426 | D46: 54.2 | E46: 4 | F46: 4 | G46: 70 | H46: 4.45 | I46: 1.23
A47: Justin Wilson | B47: NYY - RP | C47: 430 | D47: 60 | E47: 3 | F47: 0 | G47: 61 | H47: 4.2 | I47: 1.32
A48: Charlie Furbush | B48: Sea - RP | C48: 432 | D48: 42.1 | E48: 1 | F48: 1 | G48: 51 | H48: 3.61 | I48: 1.16
A49: Alex Wilson | B49: Det - RP | C49: 445 | D49: 28.1 | E49: 1 | F49: 0 | G49: 19 | H49: 1.91 | I49: 0.88
A50: Tommy Layne | B50: Bos - RP | C50: 448 | D50: 19 | E50: 2 | F50: 0 | G50: 14 | H50: 0.95 | I50: 1.16
A52: Dana Eveland | B52: Bos - RP | C52: 460 | D52: 27.1 | E52: 1 | F52: 1 | G52: 27 | H52: 2.63 | I52: 1.1
A53: Carson Smith | B53: Sea - RP | C53: 461 | D53: 8.1 | E53: 1 | F53: 0 | G53: 10 | H53: 0 | I53: 0.6
A54: Caleb Thielbar | B54: Min - RP | C54: 473 | D54: 47.2 | E54: 2 | F54: 0 | G54: 35 | H54: 3.4 | I54: 1.41
A55: Brian Matusz | B55: Bal - RP | C55: 474 | D55: 51.2 | E55: 2 | F55: 0 | G55: 53 | H55: 3.48 | I55: 1.32
A56: Ryan Webb | B56: Bal - RP | C56: 477 | D56: 49.1 | E56: 3 | F56: 0 | G56: 37 | H56: 3.83 | I56: 1.26
A57: Tom Gorzelanny | B57: Det - RP | C57: 479 | D57: 21 | E57: 0 | F57: 0 | G57: 23 | H57: 0.86 | I57: 1.43
A58: Jeff Beliveau | B58: TB - RP | C58: 480 | D58: 24 | E58: 0 | F58: 1 | G58: 28 | H58: 2.63 | I58: 1.08
A59: Román Méndez | B59: Tex - RP | C59: 482 | D59: 33 | E59: 0 | F59: 0 | G59: 22 | H59: 2.18 | I59: 1.12
A60: Fernando Rodríguez | B60: Oak - RP | C60: 483 | D60: 9 | E60: 1 | F60: 0 | G60: 4 | H60: 1 | I60: 0.67
A61: Spencer Patton | B61: Tex - RP | C61: 484 | D61: 9.1 | E61: 1 | F61: 0 | G61: 8 | H61: 0.96 | I61: 0.86
A62: Nick Hagadone | B62: Cle - RP | C62: 488 | D62: 23.1 | E62: 1 | F62: 0 | G62: 27 | H62: 2.7 | I62: 1.03
A63: Phil Klein | B63: Tex - RP | C63: 491 | D63: 19 | E63: 1 | F63: 0 | G63: 23 | H63: 2.84 | I63: 1.11
A64: Chasen Shreve | B64: NYY - RP | C64: 495 | D64: 12.1 | E64: 0 | F64: 0 | G64: 15 | H64: 0.73 | I64: 1.05
A65: Chad Jenkins | B65: Tor - RP | C65: 497 | D65: 31.2 | E65: 1 | F65: 0 | G65: 18 | H65: 2.56 | I65: 1.26
A66: Blaine Hardy | B66: Det - RP | C66: 500 | D66: 39 | E66: 2 | F66: 0 | G66: 31 | H66: 2.54 | I66: 1.38
A67: Marc Rzepczynski | B67: Cle - RP | C67: 501 | D67: 46 | E67: 0 | F67: 1 | G67: 46 | H67: 2.74 | I67: 1.33
A68: Dan Jennings | B68: CWS - RP | C68: 505 | D68: 40.1 | E68: 0 | F68: 0 | G68: 38 | H68: 1.34 | I68: 1.54
A69: Brandon Gómes | B69: TB - RP | C69: 508 | D69: 34 | E69: 2 | F69: 0 | G69: 24 | H69: 3.71 | I69: 1.15
A70: Jesse Crain | B70: CWS - RP | C70: 510 | D70: - | E70: - | F70: - | G70: - | H70: - | I70: -
A71: Brian Duensing | B71: Min - RP | C71: 514 | D71: 54.1 | E71: 3 | F71: 0 | G71: 33 | H71: 3.31 | I71: 1.33
A72: Todd Redmond | B72: Tor - RP | C72: 516 | D72: 75 | E72: 1 | F72: 1 | G72: 60 | H72: 3.24 | I72: 1.33
A73: Javy Guerra | B73: CWS - RP | C73: 517 | D73: 46.1 | E73: 2 | F73: 1 | G73: 38 | H73: 2.91 | I73: 1.32
A74: Joe Thatcher | B74: LAA - RP | C74: 520 | D74: 30.1 | E74: 2 | F74: 0 | G74: 27 | H74: 3.86 | I74: 1.32
A76: T.J. McFarland | B76: Bal - RP | C76: 522 | D76: 58.2 | E76: 4 | F76: 0 | G76: 34 | H76: 2.76 | I76: 1.41
A77: Kyle Ryan | B77: Det - RP | C77: 523 | D77: 10.1 | E77: 2 | F77: 0 | G77: 4 | H77: 2.61 | I77: 1.16
A78: Juan Carlos Oviedo | B78: Tex - RP | C78: 524 | D78: 31.2 | E78: 3 | F78: 1 | G78: 26 | H78: 3.69 | I78: 1.36
A79: Matt Albers | B79: Hou - RP | C79: 526 | D79: 10 | E79: 0 | F79: 0 | G79: 8 | H79: 0.9 | I79: 1.3
A80: Blaine Boyer | B80: Min - RP | C80: 527 | D80: 40.1 | E80: 0 | F80: 0 | G80: 29 | H80: 3.57 | I80: 1.04
A81: Will Harris | B81: Hou - RP | C81: 530 | D81: 29 | E81: 0 | F81: 0 | G81: 35 | H81: 4.34 | I81: 1.24
A82: Ryan Pressly | B82: Min - RP | C82: 531 | D82: 28.1 | E82: 2 | F82: 0 | G82: 14 | H82: 2.86 | I82: 1.34
A83: Steven Wright | B83: Bos - RP | C83: 534 | D83: 21 | E83: 0 | F83: 0 | G83: 22 | H83: 2.57 | I83: 1.19
A84: Andrew Bailey | B84: NYY - RP | C84: 535 | D84: - | E84: - | F84: - | G84: - | H84: - | I84: -
A85: R.J. Álvarez | B85: Oak - RP | C85: 536 | D85: 8 | E85: 0 | F85: 0 | G85: 9 | H85: 1.13 | I85: 1
A86: Steve Delabar | B86: Tor - RP | C86: 538 | D86: 25.2 | E86: 3 | F86: 0 | G86: 21 | H86: 4.91 | I86: 1.48
A87: Ross Ohlendorf | B87: Tex - SP,RP | C87: 540 | D87: - | E87: - | F87: - | G87: - | H87: - | I87: -
A88: Brandon Finnegan | B88: KC - RP | C88: 542 | D88: 7 | E88: 0 | F88: 0 | G88: 10 | H88: 1.29 | I88: 1
A89: Vinnie Pestano | B89: LAA - RP | C89: 545 | D89: 18.2 | E89: 0 | F89: 0 | G89: 26 | H89: 2.89 | I89: 1.23
A90: Joba Chamberlain | B90: Det - RP | C90: 549 | D90: 63 | E90: 2 | F90: 2 | G90: 59 | H90: 3.57 | I90: 1.29
A91: Eury De La Rosa | B91: Oak - RP | C91: 550 | D91: 36.2 | E91: 2 | F91: 0 | G91: 32 | H91: 2.95 | I91: 1.39
A92: Nate Jones | B92: CWS - RP | C92: 559 | D92: 0 | E92: 0 | F92: 0 | G92: 0 | H92: - | I92: -
A93: Joe Savery | B93: CWS - RP | C93: 562 | D93: 4 | E93: 0 | F93: 0 | G93: 0 | H93: 0 | I93: 1
A94: Dane De La Rosa | B94: Bal - RP | C94: 564 | D94: 2.1 | E94: 0 | F94: 0 | G94: 0 | H94: 11.57 | I94: 2.57
A95: Evan Scribner | B95: Oak - RP | C95: 567 | D95: 11.2 | E95: 1 | F95: 0 | G95: 11 | H95: 4.63 | I95: 0.94
A96: Jared Burton | B96: Min - RP | C96: 574 | D96: 64 | E96: 3 | F96: 3 | G96: 46 | H96: 4.36 | I96: 1.3
A97: Melvin Mercedes | B97: Det - RP | C97: 576 | D97: 2 | E97: 0 | F97: 0 | G97: 2 | H97: 0 | I97: 0
A98: Daniel Webb | B98: CWS - RP | C98: 582 | D98: 67.2 | E98: 6 | F98: 0 | G98: 58 | H98: 3.99 | I98: 1.49
A99: Stephen Pryor | B99: Min - RP | C99: 583 | D99: 1.2 | E99: 0 | F99: 0 | G99: 1 | H99: 0 | I99: 1.8
A100: Robert Coello | B100: NYY - RP | C100: 586 | D100: - | E100: - | F100: - | G100: - | H100: - | I100: -
A101: Steve Geltz | B101: TB - RP | C101: 590 | D101: 8.1 | E101: 0 | F101: 0 | G101: 14 | H101: 3.24 | I101: 1.32
A102: Kirby Yates | B102: TB - RP | C102: 593 | D102: 36 | E102: 0 | F102: 1 | G102: 42 | H102: 3.75 | I102: 1.33
A103: Wilking Rodríguez | B103: NYY - RP | C103: 595 | D103: 2 | E103: 0 | F103: 0 | G103: 1 | H103: 0 | I103: 1
A105: Dustin McGowan | B105: Tor - SP,RP | C105: 600 | D105: 82 | E105: 5 | F105: 1 | G105: 61 | H105: 4.17 | I105: 1.38
A106: Rob Rasmussen | B106: Tor - RP | C106: 601 | D106: 11.1 | E106: 0 | F106: 0 | G106: 13 | H106: 3.18 | I106: 1.32
A107: Kyle Drabek | B107: Tor - RP | C107: 602 | D107: 3 | E107: 0 | F107: 0 | G107: 5 | H107: 0 | I107: 1.33
A108: Edwin Escobar | B108: Bos - RP | C108: 608 | D108: 2 | E108: 0 | F108: 0 | G108: 2 | H108: 4.5 | I108: 0.5
A109: Aaron Thompson | B109: Min - RP | C109: 611 | D109: 7.1 | E109: 0 | F109: 0 | G109: 6 | H109: 2.45 | I109: 1.36
A110: Ernesto Frieri | B110: TB - RP | C110: 612 | D110: 41.2 | E110: 1 | F110: 11 | G110: 48 | H110: 7.34 | I110: 1.46
A111: Pedro Figueroa | B111: Tex - RP | C111: 613 | D111: 9 | E111: 2 | F111: 0 | G111: 3 | H111: 4 | I111: 1.44
A112: Ryan Brasier | B112: LAA - RP | C112: 614 | D112: - | E112: - | F112: - | G112: - | H112: - | I112: -
A113: Chris Dwyer | B113: KC - RP | C113: 616 | D113: - | E113: - | F113: - | G113: - | H113: - | I113: -
A114: Álex Cláudio | B114: Tex - RP | C114: 621 | D114: 12.1 | E114: 0 | F114: 0 | G114: 14 | H114: 2.92 | I114: 1.46
A115: Andrew Albers | B115: Min - RP | C115: 622 | D115: - | E115: - | F115: - | G115: - | H115: - | I115: -
A116: Kevin Chapman | B116: Hou - RP | C116: 623 | D116: 21.1 | E116: 2 | F116: 0 | G116: 19 | H116: 4.64 | I116: 1.55
A117: Everett Teaford | B117: KC - RP | C117: 631 | D117: - | E117: - | F117: - | G117: - | H117: - | I117: -
A118: Randy Messenger | B118: Sea - RP | C118: 640 | D118: - | E118: - | F118: - | G118: - | H118: - | I118: -
A119: Nick Burdi | B119: Min - RP | C119: 641 | D119: - | E119: - | F119: - | G119: - | H119: - | I119: -
A120: Julio DePaula | B120: Bal - RP | C120: 642 | D120: - | E120: - | F120: - | G120: - | H120: - | I120: -
A121: Ryan Madson | B121: LAA - RP | C121: 648 | D121: - | E121: - | F121: - | G121: - | H121: - | I121: -
A122: Asher Wojciechowski | B122: Hou - RP | C122: 653 | D122: - | E122: - | F122: - | G122: - | H122: - | I122: -
A123: Luis Severino | B123: NYY - RP | C123: 658 | D123: - | E123: - | F123: - | G123: - | H123: - | I123: -
A124: Tim Berry | B124: Bal - RP | C124: 665 | D124: - | E124: - | F124: - | G124: - | H124: - | I124: -
A125: Angel Nesbitt | B125: Det - RP | C125: 686 | D125: - | E125: - | F125: - | G125: - | H125: - | I125: -
A127: Frank Herrmann | B127: Cle - RP | C127: 706 | D127: - | E127: - | F127: - | G127: - | H127: - | I127: -
A128: Jacob Lindgren | B128: NYY - RP | C128: 708 | D128: - | E128: - | F128: - | G128: - | H128: - | I128: -
A130: A.J. Achter | B130: Min - RP | C130: 715 | D130: 11 | E130: 1 | F130: 0 | G130: 5 | H130: 3.27 | I130: 1.55
A131: Luis Ayala | B131: Bal - RP | C131: 717 | D131: - | E131: - | F131: - | G131: - | H131: - | I131: -
A132: Luis Pérez | B132: Tor - RP | C132: 718 | D132: - | E132: - | F132: - | G132: - | H132: - | I132: -
A133: Wilmer Font | B133: Tex - RP | C133: 719 | D133: - | E133: - | F133: - | G133: - | H133: - | I133: -
A134: Cory Burns | B134: Tor - RP | C134: 721 | D134: - | E134: - | F134: - | G134: - | H134: - | I134: -
A135: Charles Brewer | B135: Cle - RP | C135: 724 | D135: - | E135: - | F135: - | G135: - | H135: - | I135: -
A136: Chia-Jen Lo | B136: Hou - RP | C136: 725 | D136: - | E136: - | F136: - | G136: - | H136: - | I136: -
A137: Sean Burnett | B137: LAA - RP | C137: 726 | D137: 0.2 | E137: 0 | F137: 0 | G137: 0 | H137: 13.5 | I137: 1.5
A138: Matt Daley | B138: NYY - RP | C138: 727 | D138: 14.1 | E138: 0 | F138: 0 | G138: 10 | H138: 5.02 | I138: 1.26
A139: Mickey Storey | B139: Tor - RP | C139: 730 | D139: - | E139: - | F139: - | G139: - | H139: - | I139: -
A140: David Aardsma | B140: Cle - RP | C140: 732 | D140: - | E140: - | F140: - | G140: - | H140: - | I140: -
A141: Scott Barnes | B141: Tor - RP | C141: 733 | D141: - | E141: - | F141: - | G141: - | H141: - | I141: -
A142: Buddy Boshers | B142: LAA - RP | C142: 735 | D142: - | E142: - | F142: - | G142: - | H142: - | I142: -
A143: Brooks Raley | B143: LAA - RP | C143: 736 | D143: - | E143: - | F143: - | G143: - | H143: - | I143: -
A144: Josh Tomlin | B144: Cle - SP,RP | C144: 737 | D144: 104 | E144: 6 | F144: 0 | G144: 94 | H144: 4.76 | I144: 1.29
A145: Mike Belfiore | B145: Det - RP | C145: 740 | D145: - | E145: - | F145: - | G145: - | H145: - | I145: -
A146: César Ramos | B146: LAA - SP,RP | C146: 741 | D146: 82.2 | E146: 2 | F146: 0 | G146: 66 | H146: 3.7 | I146: 1.35
A147: Onelki García | B147: CWS - RP | C147: 743 | D147: - | E147: - | F147: - | G147: - | H147: - | I147: -
A148: Jarrett Grube | B148: LAA - RP | C148: 744 | D148: 0.2 | E148: 0 | F148: 0 | G148: 0 | H148: 13.5 | I148: 1.5
A149: Matt Barnes | B149: Bos - RP | C149: 750 | D149: 9 | E149: 0 | F149: 0 | G149: 8 | H149: 4 | I149: 1.44
A150: Édgar Olmos | B150: Sea - RP | C150: 751 | D150: - | E150: - | F150: - | G150: - | H150: - | I150: -
A151: Preston Guilmet | B151: Tor - RP | C151: 755 | D151: 10.1 | E151: 0 | F151: 0 | G151: 12 | H151: 5.23 | I151: 0.97
A152: Tim Collins | B152: KC - RP | C152: 756 | D152: 21 | E152: 0 | F152: 0 | G152: 15 | H152: 3.86 | I152: 1.38
A153: Wesley Wright | B153: Bal - RP | C153: 759 | D153: 48.1 | E153: 0 | F153: 0 | G153: 37 | H153: 3.17 | I153: 1.39
A154: David Martínez | B154: Tex - RP | C154: 761 | D154: 7 | E154: 0 | F154: 0 | G154: 6 | H154: 5.14 | I154: 1
A155: Heath Hembree | B155: Bos - RP | C155: 763 | D155: 10 | E155: 0 | F155: 0 | G155: 6 | H155: 4.5 | I155: 1.6
A156: Joel Hanrahan | B156: Det - RP | C156: 764 | D156: - | E156: - | F156: - | G156: - | H156: - | I156: -
A157: Drew Rucinski | B157: LAA - RP | C157: 765 | D157: 7.1 | E157: 0 | F157: 0 | G157: 8 | H157: 4.91 | I157: 1.5
A158: Ramón Ramírez | B158: Bal - RP | C158: 767 | D158: 1 | E158: 0 | F158: 0 | G158: 2 | H158: 0 | I158: 1
A159: Zeke Spruill | B159: Bos - RP | C159: 769 | D159: 22.2 | E159: 1 | F159: 0 | G159: 14 | H159: 3.57 | I159: 1.37
A160: Yoslan Herrera | B160: LAA - RP | C160: 775 | D160: 16.2 | E160: 1 | F160: 0 | G160: 13 | H160: 2.7 | I160: 1.86
A161: Bobby Korecky | B161: Tor - RP | C161: 784 | D161: 3.1 | E161: 0 | F161: 0 | G161: 2 | H161: 8.1 | I161: 1.5
A162: Brandon Lyon | B162: LAA - RP | C162: 785 | D162: - | E162: - | F162: - | G162: - | H162: - | I162: -
A163: Chaz Roe | B163: Bal - RP | C163: 796 | D163: 2 | E163: 0 | F163: 0 | G163: 4 | H163: 9 | I163: 3
A164: Matt West | B164: Tor - RP | C164: 797 | D164: 4 | E164: 0 | F164: 0 | G164: 3 | H164: 6.75 | I164: 1.75
A165: Peter Moylan | B165: Hou - RP | C165: 798 | D165: - | E165: - | F165: - | G165: - | H165: - | I165: -
A166: José Álvarez | B166: LAA - RP | C166: 803 | D166: 0.2 | E166: 0 | F166: 0 | G166: 1 | H166: 0 | I166: 1.5
A167: Alfredo Figaro | B167: Tex - RP | C167: 806 | D167: 8.2 | E167: 0 | F167: 0 | G167: 8 | H167: 7.27 | I167: 1.38
A168: Sean Nolin | B168: Oak - RP | C168: 807 | D168: 1 | E168: 0 | F168: 0 | G168: 0 | H168: 9 | I168: 1
A169: Lester Oliveros | B169: Min - RP | C169: 808 | D169: 6.1 | E169: 0 | F169: 0 | G169: 5 | H169: 7.11 | I169: 1.42
A170: Edgmer Escalona | B170: NYY - RP | C170: 816 | D170: - | E170: - | F170: - | G170: - | H170: - | I170: -
A171: Kevin Whelan | B171: Oak - RP | C171: 818 | D171: 1.1 | E171: 0 | F171: 0 | G171: 1 | H171: 13.5 | I171: 3.75
A172: Robert Carson | B172: LAA - RP | C172: 819 | D172: - | E172: - | F172: - | G172: - | H172: - | I172: -
A173: Deunte Heath | B173: CWS - RP | C173: 821 | D173: - | E173: - | F173: - | G173: - | H173: - | I173: -
A174: Wade LeBlanc | B174: LAA - SP,RP | C174: 827 | D174: 29.2 | E174: 1 | F174: 0 | G174: 21 | H174: 3.94 | I174: 1.15
A175: Burch Smith | B175: TB - SP,RP | C175: 828 | D175: - | E175: - | F175: - | G175: - | H175: - | I175: -
A176: Ramón Ortiz | B176: Tor - SP,RP | C176: 830 | D176: - | E176: - | F176: - | G176: - | H176: - | I176: -
A177: Lucas Luetge | B177: Sea - RP | C177: 832 | D177: 9 | E177: 0 | F177: 0 | G177: 7 | H177: 5 | I177: 1.22
A178: Michael Tonkin | B178: Min - RP | C178: 833 | D178: 19 | E178: 0 | F178: 0 | G178: 16 | H178: 4.74 | I178: 1.53
A179: Brayan Villarreal | B179: Bos - RP | C179: 835 | D179: - | E179: - | F179: - | G179: - | H179: - | I179: -
A180: José Mijares | B180: Bos - RP | C180: 837 | D180: - | E180: - | F180: - | G180: - | H180: - | I180: -
A181: Kyuji Fujikawa | B181: Tex - RP | C181: 840 | D181: 13 | E181: 0 | F181: 0 | G181: 17 | H181: 4.85 | I181: 1.85
A182: Eric Surkamp | B182: CWS - RP | C182: 842 | D182: 24.1 | E182: 2 | F182: 0 | G182: 20 | H182: 4.81 | I182: 1.44
A183: Shaun Marcum | B183: Cle - SP,RP | C183: 844 | D183: - | E183: - | F183: - | G183: - | H183: - | I183: -
A184: CC Lee | B184: Cle - RP | C184: 845 | D184: 28 | E184: 1 | F184: 0 | G184: 26 | H184: 4.5 | I184: 1.5
A185: Michael Kirkman | B185: Tex - RP | C185: 847 | D185: 5.2 | E185: 0 | F185: 0 | G185: 3 | H185: 1.59 | I185: 1.06
A186: Chad Smith | B186: Det - RP | C186: 849 | D186: 11.2 | E186: 0 | F186: 0 | G186: 9 | H186: 5.4 | I186: 1.54
A187: Ryan Mattheus | B187: LAA - RP | C187: 853 | D187: 8.2 | E187: 0 | F187: 0 | G187: 4 | H187: 1.04 | I187: 1.27
A188: Brad Lincoln | B188: Tor - RP | C188: 854 | D188: 2.1 | E188: 0 | F188: 0 | G188: 2 | H188: 11.57 | I188: 2.14
A189: Jon Edwards | B189: Tex - RP | C189: 856 | D189: 8.1 | E189: 0 | F189: 0 | G189: 9 | H189: 4.32 | I189: 2.16
A190: Colt Hynes | B190: Tor - RP | C190: 861 | D190: - | E190: - | F190: - | G190: - | H190: - | I190: -
A191: Matt Guerrier | B191: Min - RP | C191: 863 | D191: 28 | E191: 0 | F191: 0 | G191: 12 | H191: 3.86 | I191: 1.43
A192: C.J. Riefenhauser | B192: TB - RP | C192: 864 | D192: 5.1 | E192: 0 | F192: 0 | G192: 2 | H192: 8.44 | I192: 1.69
A193: Phil Coke | B193: Det - RP | C193: 865 | D193: 58 | E193: 5 | F193: 1 | G193: 41 | H193: 3.88 | I193: 1.53
A194: José Ramírez | B194: NYY - RP | C194: 867 | D194: 10 | E194: 0 | F194: 0 | G194: 10 | H194: 5.4 | I194: 1.8
A195: César Cabral | B195: Bal - RP | C195: 869 | D195: 1 | E195: 0 | F195: 0 | G195: 2 | H195: 27 | I195: 6
A196: Casey Coleman | B196: KC - RP | C196: 873 | D196: 12 | E196: 1 | F196: 0 | G196: 5 | H196: 5.25 | I196: 1.83
A197: Ryan Feierabend | B197: Tex - RP | C197: 880 | D197: 7.1 | E197: 0 | F197: 0 | G197: 4 | H197: 6.14 | I197: 1.91
A198: Austin Adams | B198: Cle - RP | C198: 886 | D198: 7 | E198: 0 | F198: 0 | G198: 4 | H198: 9 | I198: 1.43
A199: Frank Francisco | B199: CWS - RP | C199: 889 | D199: 3.2 | E199: 0 | F199: 0 | G199: 5 | H199: 12.27 | I199: 2.73
A200: Mitchell Boggs | B200: CWS - RP | C200: 890 | D200: - | E200: - | F200: - | G200: - | H200: - | I200: -
A201: Darin Downs | B201: Hou - RP | C201: 905 | D201: 34.2 | E201: 2 | F201: 0 | G201: 27 | H201: 5.45 | I201: 1.36
A202: Bo Schultz | B202: Tor - RP | C202: 909 | D202: 8 | E202: 0 | F202: 0 | G202: 5 | H202: 7.88 | I202: 1.75
A203: Aaron Poreda | B203: Tex - RP | C203: 911 | D203: 21.1 | E203: 2 | F203: 0 | G203: 21 | H203: 5.91 | I203: 1.73
A204: José Domínguez | B204: TB - RP | C204: 912 | D204: 6.1 | E204: 0 | F204: 0 | G204: 8 | H204: 11.37 | I204: 1.58
A205: Joe Paterson | B205: KC - RP | C205: 914 | D205: 1.1 | E205: 0 | F205: 0 | G205: 0 | H205: 33.75 | I205: 3.75
A206: Rich Hill | B206: NYY - RP | C206: 918 | D206: 5.1 | E206: 0 | F206: 0 | G206: 9 | H206: 3.38 | I206: 2.44
A207: Louis Coleman | B207: KC - RP | C207: 919 | D207: 34 | E207: 1 | F207: 1 | G207: 24 | H207: 5.56 | I207: 1.68
A208: Mark Lowe | B208: Sea - RP | C208: 922 | D208: 7 | E208: 0 | F208: 0 | G208: 6 | H208: 3.86 | I208: 2.29
A209: Neil Wagner | B209: TB - RP | C209: 924 | D209: 10 | E209: 0 | F209: 0 | G209: 6 | H209: 8.1 | I209: 1.6
A210: Jeff Francis | B210: Tor - RP | C210: 927 | D210: 20 | E210: 1 | F210: 1 | G210: 15 | H210: 5.85 | I210: 1.05
A211: Kyle Farnsworth | B211: Hou - RP | C211: 932 | D211: 28.2 | E211: 0 | F211: 3 | G211: 18 | H211: 4.4 | I211: 1.64
A212: Matt Lindstrom | B212: CWS - RP | C212: 934 | D212: 34 | E212: 2 | F212: 6 | G212: 18 | H212: 5.03 | I212: 1.74
A213: Alexi Ogando | B213: Bos - RP | C213: 943 | D213: 25 | E213: 2 | F213: 1 | G213: 22 | H213: 6.84 | I213: 1.92
A214: Taylor Thompson | B214: Oak - RP | C214: 944 | D214: 5.1 | E214: 0 | F214: 0 | G214: 4 | H214: 10.13 | I214: 2.44
A215: Alfredo Aceves | B215: NYY - RP | C215: 945 | D215: 19.1 | E215: 1 | F215: 0 | G215: 16 | H215: 6.52 | I215: 1.4
A216: Scott Snodgress | B216: LAA - RP | C216: 954 | D216: 2.1 | E216: 0 | F216: 0 | G216: 1 | H216: 15.43 | I216: 4.71
A218: Jake Buchanan | B218: Hou - RP | C218: 961 | D218: 35.1 | E218: 1 | F218: 0 | G218: 20 | H218: 4.58 | I218: 1.5
A219: Scott Downs | B219: Cle - RP | C219: 962 | D219: 38 | E219: 0 | F219: 1 | G219: 25 | H219: 4.97 | I219: 1.47
A220: Raúl Valdes | B220: Tor - RP | C220: 963 | D220: 3.2 | E220: 0 | F220: 1 | G220: 4 | H220: 12.27 | I220: 2.18
A221: Bryan Price | B221: Cle - RP | C221: 965 | D221: 2.2 | E221: 0 | F221: 0 | G221: 1 | H221: 20.25 | I221: 3.38
A222: Justin Germano | B222: Sea - RP | C222: 966 | D222: 5.1 | E222: 0 | F222: 0 | G222: 3 | H222: 11.81 | I222: 2.06
A223: Scott Baker | B223: NYY - SP,RP | C223: 967 | D223: 80.2 | E223: 3 | F223: 0 | G223: 55 | H223: 5.47 | I223: 1.19
A224: Ronald Belisario | B224: TB - RP | C224: 969 | D224: 66.1 | E224: 4 | F224: 8 | G224: 47 | H224: 5.56 | I224: 1.45
A225: Maikel Cleto | B225: CWS - RP | C225: 970 | D225: 29.1 | E225: 0 | F225: 0 | G225: 32 | H225: 4.6 | I225: 1.6
A226: Luke Putkonen | B226: Det - RP | C226: 973 | D226: 2.2 | E226: 0 | F226: 0 | G226: 1 | H226: 27 | I226: 3
A227: Chris Martín | B227: NYY - RP | C227: 978 | D227: 15.2 | E227: 0 | F227: 0 | G227: 14 | H227: 6.89 | I227: 1.66
A228: Evan Reed | B228: Det - RP | C228: 980 | D228: 32.1 | E228: 0 | F228: 0 | G228: 26 | H228: 4.18 | I228: 1.58
A229: Jim Miller | B229: NYY - RP | C229: 982 | D229: 2.2 | E229: 0 | F229: 0 | G229: 2 | H229: 20.25 | I229: 3.38
A230: Patrick McCoy | B230: Bal - RP | C230: 984 | D230: 14 | E230: 0 | F230: 0 | G230: 11 | H230: 3.86 | I230: 2.43
A231: Chris Capuano | B231: NYY - SP,RP | C231: 987 | D231: 97.1 | E231: 3 | F231: 0 | G231: 84 | H231: 4.35 | I231: 1.39
... 23 more rows

Sheet Data
A1: Owners | B1: Position
A2: Lightning (Mike Goodman) | B2: Catcher
A3: Evolution (Bruce) | B3: 1st Base
A4: The Soylent Knights (Colin) | B4: 2nd Base
A5: Woap (Mike) | B5: 3rd Base
A6: The Dominant Brand (Brandon) | B6: Short Stop
A7: Guzzlers (Rhonda) | B7: Outfield #1
A8: The Macon Whoopees (Rob) | B8: Outfield #2
A9: Booya's (Cathy) | B9: Outfield #3
A10: Freebirds (Todd) | B10: DH
A11: Numbats (Tom) | B11: Starting Pitcher #1
A12: TheDunnShow (Dave) | B12: Starting Pitcher #2
B13: Starting Pitcher #3
B14: Starting Pitcher #4
B15: Starting Pitcher #5
B16: Relief Pitcher #1
B17: Relief Pitcher #2
B18: Relief Pitcher #3
B19: Relief Pitcher #4
B20: Reserve Roster #1
B21: Reserve Roster #2
B22: Reserve Roster #3
B23: Reserve Roster #4
B24: Reserve Roster #5
B25: Reserve Roster #6
B26: Reserve Roster #7
A28: Make sure every year to select all the players for each position and recreate the bookmark name (delete name first, then recreate name) to ensure all players get listed. | C28: catchers | D28: first | E28: second | F28: third | G28: ss | H28: outfield | I28: dh | J28: pitchers | K28: relief
A29: Ensure that all players are listed when clicking on the button.
B31: Change Draft Order Yearly
A33: TheDunnShow (Dave) | B33: 1
A34: The Dominant Brand (Brandon) | B34: 2
A35: Freebirds (Todd) | B35: 3
A36: Guzzlers (Rhonda) | B36: 4
A37: Evolution (Bruce) | B37: 5
A38: The Macon Whoopees (Rob) | B38: 6
A39: The Soylent Knights (Colin) | B39: 7
A40: Booya's (Cathy) | B40: 8
A41: Woap (Mike) | B41: 9
A42: Lightning (Mike Goodman) | B42: 10
A43: Numbats (Tom) | B43: 11
A47: Formulas to Retreive Name and Position
A48: =RIGHT(A1,LEN(A1)+ 5-FIND("-",A1)) | B48: Position
A49: =LEFT(A1,FIND("-",A1) -5) | B49: Name
A50: =Trim(cell) | B50: Trim the positions for extra space

Sheet Sheet1
